Workbook

Sheet 644 Notes
A1: Relative Reference button in Developer ribbon govers movement of the cursor.
A2: For this Macro it was important to start and end location of the cursor in the correct place (cell).
A3: Alt + F8 = opens Macro List.
A4: CHAR(10) function adds a hard return in cell (wrap text) to formula

Sheet 644
A1: First | B1: Last | C1: Address 1 | D1: Address 2 | E1: City | F1: State | G1: Zip | H1: Phone | I1: E1 | J1: E2
A2: Steve | B2: Chin | C2: 14 17th St. | E2: Seattle | F2: WA | G2: 98104 | H2: 206-572-3409 | I2: =A2&"_"&B2&"@notaol.com" -> Steve_Chin@notaol.com | J2: Chin_14 17th St.@notaol.com
A3: Troun | B3: Tenn | C3: 6 19th St. | E3: Seattle | F3: WA | G3: 98106 | H3: 206-667-3154 | I3: Troun_Tenn@notaol.com | J3: Tenn_6 19th St.@notaol.com
A4: Rhond | B4: Tradfren | C4: 10 13th St. | D4: 14 17th St. | E4: Seattle | F4: WA | G4: 98117 | H4: 206-574-1265 | I4: Rhond_Tradfren@notaol.com | J4: Tradfren_10 13th St.@notaol.com
A5: Sheli | B5: Das | C5: 2 15th St. | E5: Seattle | F5: WA | G5: 98111 | H5: 206-637-4014 | I5: Sheli_Das@notaol.com | J5: Das_2 15th St.@notaol.com
A6: Jon | B6: Teddy | C6: 3 17th St. | D6: 5 19th St. | E6: Seattle | F6: WA | G6: 98114 | H6: 206-515-5102 | I6: Jon_Teddy@notaol.com | J6: Teddy_3 17th St.@notaol.com
A7: Jeri | B7: Yessler | C7: 12 16th St. | E7: Seattle | F7: WA | G7: 98114 | H7: 206-583-2943 | I7: Jeri_Yessler@notaol.com | J7: Yessler_12 16th St.@notaol.com
A8: Luke | B8: Suix | C8: 8 19th St. | E8: Seattle | F8: WA | G8: 98113 | H8: 206-774-4449 | I8: Luke_Suix@notaol.com | J8: Suix_8 19th St.@notaol.com
A9: Luke | B9: Red | C9: 15 16th St. | D9: Suite 3 | E9: Seattle | F9: WA | G9: 98108 | H9: 206-685-2311 | I9: Luke_Red@notaol.com | J9: Red_15 16th St.@notaol.com
A10: Jeri | B10: Smythe | C10: 14 19th St. | E10: Seattle | F10: WA | G10: 98112 | H10: 206-574-6156 | I10: Jeri_Smythe@notaol.com | J10: Smythe_14 19th St.@notaol.com
A11: Luke | B11: Rad | C11: 3 16th St. | E11: Seattle | F11: WA | G11: 98106 | H11: 206-599-3338 | I11: Luke_Rad@notaol.com | J11: Rad_3 16th St.@notaol.com
A12: Jon | B12: Dap | C12: 5 19th St. | E12: Seattle | F12: WA | G12: 98116 | H12: 206-679-1485 | I12: Jon_Dap@notaol.com | J12: Dap_5 19th St.@notaol.com
A13: Steve | B13: Gupis | C13: 6 17th St. | D13: Room 1123 | E13: Seattle | F13: WA | G13: 98111 | H13: 206-609-1507 | I13: Steve_Gupis@notaol.com | J13: Gupis_6 17th St.@notaol.com
A14: Jon | B14: Summi | C14: 4 14th St. | E14: Seattle | F14: WA | G14: 98104 | H14: 206-733-4318 | I14: Jon_Summi@notaol.com | J14: Summi_4 14th St.@notaol.com
A15: Sheli | B15: Fun | C15: 7 15th St. | E15: Seattle | F15: WA | G15: 98110 | H15: 206-691-7629 | I15: Sheli_Fun@notaol.com | J15: Fun_7 15th St.@notaol.com

Sheet 644 (2)
A1: First | B1: Last | C1: Address 1 | D1: Address 2 | E1: City | F1: State | G1: Zip | H1: Phone | I1: E1 | J1: E2
A2: Steve | B2: Chin | C2: 14 17th St. | E2: Seattle | F2: WA | G2: 98104 | H2: 206-572-3409 | I2: =A2&"_"&B2&"@notaol.com" -> Steve_Chin@notaol.com | J2: Chin_14 17th St.@notaol.com
A3: Troun | B3: Tenn | C3: 6 19th St. | E3: Seattle | F3: WA | G3: 98106 | H3: 206-667-3154 | I3: Troun_Tenn@notaol.com | J3: Tenn_6 19th St.@notaol.com
A4: Rhond | B4: Tradfren | C4: 10 13th St. | D4: 14 17th St. | E4: Seattle | F4: WA | G4: 98117 | H4: 206-574-1265 | I4: Rhond_Tradfren@notaol.com | J4: Tradfren_10 13th St.@notaol.com
A5: Sheli | B5: Das | C5: 2 15th St. | E5: Seattle | F5: WA | G5: 98111 | H5: 206-637-4014 | I5: Sheli_Das@notaol.com | J5: Das_2 15th St.@notaol.com
A6: Jon | B6: Teddy | C6: 3 17th St. | D6: 5 19th St. | E6: Seattle | F6: WA | G6: 98114 | H6: 206-515-5102 | I6: Jon_Teddy@notaol.com | J6: Teddy_3 17th St.@notaol.com
A7: Jeri | B7: Yessler | C7: 12 16th St. | E7: Seattle | F7: WA | G7: 98114 | H7: 206-583-2943 | I7: Jeri_Yessler@notaol.com | J7: Yessler_12 16th St.@notaol.com
A8: Luke | B8: Suix | C8: 8 19th St. | E8: Seattle | F8: WA | G8: 98113 | H8: 206-774-4449 | I8: Luke_Suix@notaol.com | J8: Suix_8 19th St.@notaol.com
A9: Luke | B9: Red | C9: 15 16th St. | D9: Suite 3 | E9: Seattle | F9: WA | G9: 98108 | H9: 206-685-2311 | I9: Luke_Red@notaol.com | J9: Red_15 16th St.@notaol.com
A10: Jeri | B10: Smythe | C10: 14 19th St. | E10: Seattle | F10: WA | G10: 98112 | H10: 206-574-6156 | I10: Jeri_Smythe@notaol.com | J10: Smythe_14 19th St.@notaol.com
A11: Luke | B11: Rad | C11: 3 16th St. | E11: Seattle | F11: WA | G11: 98106 | H11: 206-599-3338 | I11: Luke_Rad@notaol.com | J11: Rad_3 16th St.@notaol.com
A12: Jon | B12: Dap | C12: 5 19th St. | E12: Seattle | F12: WA | G12: 98116 | H12: 206-679-1485 | I12: Jon_Dap@notaol.com | J12: Dap_5 19th St.@notaol.com
A13: Steve | B13: Gupis | C13: 6 17th St. | D13: Room 1123 | E13: Seattle | F13: WA | G13: 98111 | H13: 206-609-1507 | I13: Steve_Gupis@notaol.com | J13: Gupis_6 17th St.@notaol.com
A14: Jon | B14: Summi | C14: 4 14th St. | E14: Seattle | F14: WA | G14: 98104 | H14: 206-733-4318 | I14: Jon_Summi@notaol.com | J14: Summi_4 14th St.@notaol.com
A15: Sheli | B15: Fun | C15: 7 15th St. | E15: Seattle | F15: WA | G15: 98110 | H15: 206-691-7629 | I15: Sheli_Fun@notaol.com | J15: Fun_7 15th St.@notaol.com

Sheet 644 (3)
A1: First | B1: Last | C1: Address 1 | D1: Address 2 | E1: City | F1: State | G1: Zip | H1: Phone | I1: E1 | J1: E2
A2: Steve | B2: Chin | C2: 14 17th St. | E2: Seattle | F2: WA | G2: 98104 | H2: 206-572-3409 | I2: =A2&"_"&B2&"@notaol.com" -> Steve_Chin@notaol.com | J2: Chin_14 17th St.@notaol.com
A3: Troun | B3: Tenn | C3: 6 19th St. | E3: Seattle | F3: WA | G3: 98106 | H3: 206-667-3154 | I3: Troun_Tenn@notaol.com | J3: Tenn_6 19th St.@notaol.com
A4: Rhond | B4: Tradfren | C4: 10 13th St. | D4: 14 17th St. | E4: Seattle | F4: WA | G4: 98117 | H4: 206-574-1265 | I4: Rhond_Tradfren@notaol.com | J4: Tradfren_10 13th St.@notaol.com
A5: Sheli | B5: Das | C5: 2 15th St. | E5: Seattle | F5: WA | G5: 98111 | H5: 206-637-4014 | I5: Sheli_Das@notaol.com | J5: Das_2 15th St.@notaol.com
A6: Jon | B6: Teddy | C6: 3 17th St. | D6: 5 19th St. | E6: Seattle | F6: WA | G6: 98114 | H6: 206-515-5102 | I6: Jon_Teddy@notaol.com | J6: Teddy_3 17th St.@notaol.com
A7: Jeri | B7: Yessler | C7: 12 16th St. | E7: Seattle | F7: WA | G7: 98114 | H7: 206-583-2943 | I7: Jeri_Yessler@notaol.com | J7: Yessler_12 16th St.@notaol.com
A8: Luke | B8: Suix | C8: 8 19th St. | E8: Seattle | F8: WA | G8: 98113 | H8: 206-774-4449 | I8: Luke_Suix@notaol.com | J8: Suix_8 19th St.@notaol.com
A9: Luke | B9: Red | C9: 15 16th St. | D9: Suite 3 | E9: Seattle | F9: WA | G9: 98108 | H9: 206-685-2311 | I9: Luke_Red@notaol.com | J9: Red_15 16th St.@notaol.com
A10: Jeri | B10: Smythe | C10: 14 19th St. | E10: Seattle | F10: WA | G10: 98112 | H10: 206-574-6156 | I10: Jeri_Smythe@notaol.com | J10: Smythe_14 19th St.@notaol.com
A11: Luke | B11: Rad | C11: 3 16th St. | E11: Seattle | F11: WA | G11: 98106 | H11: 206-599-3338 | I11: Luke_Rad@notaol.com | J11: Rad_3 16th St.@notaol.com
A12: Jon | B12: Dap | C12: 5 19th St. | E12: Seattle | F12: WA | G12: 98116 | H12: 206-679-1485 | I12: Jon_Dap@notaol.com | J12: Dap_5 19th St.@notaol.com
A13: Steve | B13: Gupis | C13: 6 17th St. | D13: Room 1123 | E13: Seattle | F13: WA | G13: 98111 | H13: 206-609-1507 | I13: Steve_Gupis@notaol.com | J13: Gupis_6 17th St.@notaol.com
A14: Jon | B14: Summi | C14: 4 14th St. | E14: Seattle | F14: WA | G14: 98104 | H14: 206-733-4318 | I14: Jon_Summi@notaol.com | J14: Summi_4 14th St.@notaol.com
A15: Sheli | B15: Fun | C15: 7 15th St. | E15: Seattle | F15: WA | G15: 98110 | H15: 206-691-7629 | I15: Sheli_Fun@notaol.com | J15: Fun_7 15th St.@notaol.com

Sheet 644 (4)
A1: First | B1: Last | C1: Address 1 | D1: Address 2 | E1: City | F1: State | G1: Zip | H1: Phone | I1: E1 | J1: E2
A2: Steve | B2: Chin | C2: 14 17th St. | E2: Seattle | F2: WA | G2: 98104 | H2: 206-572-3409 | I2: =A2&"_"&B2&"@notaol.com" -> Steve_Chin@notaol.com | J2: Chin_14 17th St.@notaol.com
A3: Troun | B3: Tenn | C3: 6 19th St. | E3: Seattle | F3: WA | G3: 98106 | H3: 206-667-3154 | I3: Troun_Tenn@notaol.com | J3: Tenn_6 19th St.@notaol.com
A4: Rhond | B4: Tradfren | C4: 10 13th St. | D4: 14 17th St. | E4: Seattle | F4: WA | G4: 98117 | H4: 206-574-1265 | I4: Rhond_Tradfren@notaol.com | J4: Tradfren_10 13th St.@notaol.com
A5: Sheli | B5: Das | C5: 2 15th St. | E5: Seattle | F5: WA | G5: 98111 | H5: 206-637-4014 | I5: Sheli_Das@notaol.com | J5: Das_2 15th St.@notaol.com
A6: Jon | B6: Teddy | C6: 3 17th St. | D6: 5 19th St. | E6: Seattle | F6: WA | G6: 98114 | H6: 206-515-5102 | I6: Jon_Teddy@notaol.com | J6: Teddy_3 17th St.@notaol.com
A7: Jeri | B7: Yessler | C7: 12 16th St. | E7: Seattle | F7: WA | G7: 98114 | H7: 206-583-2943 | I7: Jeri_Yessler@notaol.com | J7: Yessler_12 16th St.@notaol.com
A8: Luke | B8: Suix | C8: 8 19th St. | E8: Seattle | F8: WA | G8: 98113 | H8: 206-774-4449 | I8: Luke_Suix@notaol.com | J8: Suix_8 19th St.@notaol.com
A9: Luke | B9: Red | C9: 15 16th St. | D9: Suite 3 | E9: Seattle | F9: WA | G9: 98108 | H9: 206-685-2311 | I9: Luke_Red@notaol.com | J9: Red_15 16th St.@notaol.com
A10: Jeri | B10: Smythe | C10: 14 19th St. | E10: Seattle | F10: WA | G10: 98112 | H10: 206-574-6156 | I10: Jeri_Smythe@notaol.com | J10: Smythe_14 19th St.@notaol.com
A11: Luke | B11: Rad | C11: 3 16th St. | E11: Seattle | F11: WA | G11: 98106 | H11: 206-599-3338 | I11: Luke_Rad@notaol.com | J11: Rad_3 16th St.@notaol.com
A12: Jon | B12: Dap | C12: 5 19th St. | E12: Seattle | F12: WA | G12: 98116 | H12: 206-679-1485 | I12: Jon_Dap@notaol.com | J12: Dap_5 19th St.@notaol.com
A13: Steve | B13: Gupis | C13: 6 17th St. | D13: Room 1123 | E13: Seattle | F13: WA | G13: 98111 | H13: 206-609-1507 | I13: Steve_Gupis@notaol.com | J13: Gupis_6 17th St.@notaol.com
A14: Jon | B14: Summi | C14: 4 14th St. | E14: Seattle | F14: WA | G14: 98104 | H14: 206-733-4318 | I14: Jon_Summi@notaol.com | J14: Summi_4 14th St.@notaol.com
A15: Sheli | B15: Fun | C15: 7 15th St. | E15: Seattle | F15: WA | G15: 98110 | H15: 206-691-7629 | I15: Sheli_Fun@notaol.com | J15: Fun_7 15th St.@notaol.com

Sheet 644 (5)
A1: First | B1: Last | C1: Address 1 | D1: Address 2 | E1: City | F1: State | G1: Zip | H1: Phone | I1: E1 | J1: E2
A2: Steve | B2: Chin | C2: 14 17th St. | E2: Seattle | F2: WA | G2: 98104 | H2: 206-572-3409 | I2: =A2&"_"&B2&"@notaol.com" -> Steve_Chin@notaol.com | J2: Chin_14 17th St.@notaol.com
A3: Troun | B3: Tenn | C3: 6 19th St. | E3: Seattle | F3: WA | G3: 98106 | H3: 206-667-3154 | I3: Troun_Tenn@notaol.com | J3: Tenn_6 19th St.@notaol.com
A4: Rhond | B4: Tradfren | C4: 10 13th St. | D4: 14 17th St. | E4: Seattle | F4: WA | G4: 98117 | H4: 206-574-1265 | I4: Rhond_Tradfren@notaol.com | J4: Tradfren_10 13th St.@notaol.com
A5: Sheli | B5: Das | C5: 2 15th St. | E5: Seattle | F5: WA | G5: 98111 | H5: 206-637-4014 | I5: Sheli_Das@notaol.com | J5: Das_2 15th St.@notaol.com
A6: Jon | B6: Teddy | C6: 3 17th St. | D6: 5 19th St. | E6: Seattle | F6: WA | G6: 98114 | H6: 206-515-5102 | I6: Jon_Teddy@notaol.com | J6: Teddy_3 17th St.@notaol.com
A7: Jeri | B7: Yessler | C7: 12 16th St. | E7: Seattle | F7: WA | G7: 98114 | H7: 206-583-2943 | I7: Jeri_Yessler@notaol.com | J7: Yessler_12 16th St.@notaol.com
A8: Luke | B8: Suix | C8: 8 19th St. | E8: Seattle | F8: WA | G8: 98113 | H8: 206-774-4449 | I8: Luke_Suix@notaol.com | J8: Suix_8 19th St.@notaol.com
A9: Luke | B9: Red | C9: 15 16th St. | D9: Suite 3 | E9: Seattle | F9: WA | G9: 98108 | H9: 206-685-2311 | I9: Luke_Red@notaol.com | J9: Red_15 16th St.@notaol.com
A10: Jeri | B10: Smythe | C10: 14 19th St. | E10: Seattle | F10: WA | G10: 98112 | H10: 206-574-6156 | I10: Jeri_Smythe@notaol.com | J10: Smythe_14 19th St.@notaol.com
A11: Luke | B11: Rad | C11: 3 16th St. | E11: Seattle | F11: WA | G11: 98106 | H11: 206-599-3338 | I11: Luke_Rad@notaol.com | J11: Rad_3 16th St.@notaol.com
A12: Jon | B12: Dap | C12: 5 19th St. | E12: Seattle | F12: WA | G12: 98116 | H12: 206-679-1485 | I12: Jon_Dap@notaol.com | J12: Dap_5 19th St.@notaol.com
A13: Steve | B13: Gupis | C13: 6 17th St. | D13: Room 1123 | E13: Seattle | F13: WA | G13: 98111 | H13: 206-609-1507 | I13: Steve_Gupis@notaol.com | J13: Gupis_6 17th St.@notaol.com
A14: Jon | B14: Summi | C14: 4 14th St. | E14: Seattle | F14: WA | G14: 98104 | H14: 206-733-4318 | I14: Jon_Summi@notaol.com | J14: Summi_4 14th St.@notaol.com
A15: Sheli | B15: Fun | C15: 7 15th St. | E15: Seattle | F15: WA | G15: 98110 | H15: 206-691-7629 | I15: Sheli_Fun@notaol.com | J15: Fun_7 15th St.@notaol.com

Sheet 644an
A1: Steve Chin
A2: 14 17th St.
A3: Seattle WA 98104
A5: Troun Tenn
A6: 6 19th St.
A7: Seattle WA 98106
A9: Rhond Tradfren
A10: 10 13th St. Room 33
A11: Seattle WA 98117
A13: Sheli Das
A14: 2 15th St.
A15: Seattle WA 98111
A17: Jon Teddy
A18: 3 17th St. Box 110
A19: Seattle WA 98114
A21: Jeri Yessler
A22: 12 16th St.
A23: Seattle WA 98114
A25: Luke Suix
A26: 8 19th St.
A27: Seattle WA 98113
A29: Luke Red
A30: 15 16th St. Suite 3
A31: Seattle WA 98108
A33: Jeri Smythe
A34: 14 19th St.
A35: Seattle WA 98112
A37: Luke Rad
A38: 3 16th St.
A39: Seattle WA 98106
A41: Jon Dap
A42: 5 19th St.
A43: Seattle WA 98116
A45: Steve Gupis
A46: 6 17th St. Room 1123
A47: Seattle WA 98111
A49: Jon Summi
A50: 4 14th St.
A51: Seattle WA 98104
A53: Sheli Fun
A54: 7 15th St.
A55: Seattle WA 98110

Sheet (645)
A1: How to build Amortization Tables:
A2: http://www.youtube.com/view_play_list?p=1C040B9C3D6B319B
A4: Amount | B4: 200000 | D4: Amount | E4: 200000 | J4: How to build Amortization Tables:
A5: Annual Rate | B5: 0.0575 | D5: Annual Rate | E5: 0.0412 | J5: http://www.youtube.com/view_play_list?p=1C040B9C3D6B319B
A6: Periods Per Year | B6: 12 | D6: Periods Per Year | E6: 12
A7: Period Rate | B7: =B5/B6 -> 0.004791666667 | D7: Period Rate | E7: =E5/E6 -> 0.003433333333
A8: Years | B8: 25 | D8: Years | E8: 15
A9: Total Periods | B9: =B8*B6 -> 300 | D9: Total Periods | E9: =E8*E6 -> 180
A10: PMT | B10: =-PMT(B7,B9,B4) -> 1258.212805 | D10: PMT | E10: =-PMT(E7,E9,E4) -> 1491.43159
A11: Total Interest | D11: Total Interest
A12: Total Interest | D12: Total Interest
A16: Periods | B16: PMT | C16: Interest | D16: Principal | E16: Balance | G16: Periods | H16: PMT | I16: Interest | J16: Principal | K16: Balance
A17: =IF(ROWS(A$17:A17)-1>B$9,"",ROWS(A$17:A17)-1) -> 0 | E17: =B4 -> 200000 | G17: =IF(ROWS(G$17:G17)-1>E$9,"",ROWS(G$17:G17)-1) -> 0 | K17: =E4 -> 200000
A18: =IF(ROWS(A$17:A18)-1>B$9,"",ROWS(A$17:A18)-1) -> 1 | B18: =IF(A18="","",B$10) -> 1258.212805 | C18: =IF(A18="","",E17*B$7) -> 958.3333333 | D18: =IF(A18="","",B18-C18) -> 299.8794715 | E18: =IF(A18="","",E17-D18) -> 199700.1205 | G18: =IF(ROWS(G$17:G18)-1>E$9,"",ROWS(G$17:G18)-1) -> 1 | H18: =IF(G18="","",E$10) -> 1491.43159 | I18: =IF(G18="","",K17*E$7) -> 686.6666667 | J18: =IF(G18="","",H18-I18) -> 804.7649237 | K18: =IF(G18="","",K17-J18) -> 199195.2351
A19: =IF(ROWS(A$17:A19)-1>B$9,"",ROWS(A$17:A19)-1) -> 2 | B19: =IF(A19="","",B$10) -> 1258.212805 | C19: =IF(A19="","",E18*B$7) -> 956.8964109 | D19: =IF(A19="","",B19-C19) -> 301.316394 | E19: =IF(A19="","",E18-D19) -> 199398.8041 | G19: =IF(ROWS(G$17:G19)-1>E$9,"",ROWS(G$17:G19)-1) -> 2 | H19: 1491.43159 | I19: 683.9036404 | J19: =IF(G19="","",H19-I19) -> 807.5279499 | K19: =IF(G19="","",K18-J19) -> 198387.7071
A20: =IF(ROWS(A$17:A20)-1>B$9,"",ROWS(A$17:A20)-1) -> 3 | B20: 1258.212805 | C20: 955.4526031 | D20: 302.7602017 | E20: 199096.0439 | G20: =IF(ROWS(G$17:G20)-1>E$9,"",ROWS(G$17:G20)-1) -> 3 | H20: 1491.43159 | I20: 681.1311278 | J20: 810.3004626 | K20: 197577.4067
A21: =IF(ROWS(A$17:A21)-1>B$9,"",ROWS(A$17:A21)-1) -> 4 | B21: 1258.212805 | C21: 954.0018772 | D21: 304.2109277 | E21: 198791.833 | G21: =IF(ROWS(G$17:G21)-1>E$9,"",ROWS(G$17:G21)-1) -> 4 | H21: 1491.43159 | I21: 678.3490962 | J21: 813.0824942 | K21: 196764.3242
A22: =IF(ROWS(A$17:A22)-1>B$9,"",ROWS(A$17:A22)-1) -> 5 | B22: 1258.212805 | C22: 952.5441998 | D22: 305.668605 | E22: 198486.1644 | G22: =IF(ROWS(G$17:G22)-1>E$9,"",ROWS(G$17:G22)-1) -> 5 | H22: 1491.43159 | I22: 675.557513 | J22: 815.8740774 | K22: 195948.4501
A23: =IF(ROWS(A$17:A23)-1>B$9,"",ROWS(A$17:A23)-1) -> 6 | B23: 1258.212805 | C23: 951.0795378 | D23: 307.1332671 | E23: 198179.0311 | G23: =IF(ROWS(G$17:G23)-1>E$9,"",ROWS(G$17:G23)-1) -> 6 | H23: 1491.43159 | I23: 672.7563453 | J23: 818.6752451 | K23: 195129.7748
A24: =IF(ROWS(A$17:A24)-1>B$9,"",ROWS(A$17:A24)-1) -> 7 | B24: 1258.212805 | C24: 949.6078575 | D24: 308.6049473 | E24: 197870.4262 | G24: =IF(ROWS(G$17:G24)-1>E$9,"",ROWS(G$17:G24)-1) -> 7 | H24: 1491.43159 | I24: 669.9455603 | J24: 821.4860301 | K24: 194308.2888
A25: =IF(ROWS(A$17:A25)-1>B$9,"",ROWS(A$17:A25)-1) -> 8 | B25: 1258.212805 | C25: 948.1291255 | D25: 310.0836794 | E25: 197560.3425 | G25: =IF(ROWS(G$17:G25)-1>E$9,"",ROWS(G$17:G25)-1) -> 8 | H25: 1491.43159 | I25: 667.1251249 | J25: 824.3064654 | K25: 193483.9824
A26: =IF(ROWS(A$17:A26)-1>B$9,"",ROWS(A$17:A26)-1) -> 9 | B26: 1258.212805 | C26: 946.6433078 | D26: 311.569497 | E26: 197248.773 | G26: =IF(ROWS(G$17:G26)-1>E$9,"",ROWS(G$17:G26)-1) -> 9 | H26: 1491.43159 | I26: 664.2950061 | J26: 827.1365843 | K26: 192656.8458
A27: =IF(ROWS(A$17:A27)-1>B$9,"",ROWS(A$17:A27)-1) -> 10 | B27: 1258.212805 | C27: 945.1503707 | D27: 313.0624342 | E27: 196935.7106 | G27: =IF(ROWS(G$17:G27)-1>E$9,"",ROWS(G$17:G27)-1) -> 10 | H27: 1491.43159 | I27: 661.4551705 | J27: 829.9764199 | K27: 191826.8693
A28: =IF(ROWS(A$17:A28)-1>B$9,"",ROWS(A$17:A28)-1) -> 11 | B28: 1258.212805 | C28: 943.6502798 | D28: 314.562525 | E28: 196621.1481 | G28: =IF(ROWS(G$17:G28)-1>E$9,"",ROWS(G$17:G28)-1) -> 11 | H28: 1491.43159 | I28: 658.6055848 | J28: 832.8260056 | K28: 190994.0433
A29: =IF(ROWS(A$17:A29)-1>B$9,"",ROWS(A$17:A29)-1) -> 12 | B29: 1258.212805 | C29: 942.1430011 | D29: 316.0698038 | E29: 196305.0782 | G29: =IF(ROWS(G$17:G29)-1>E$9,"",ROWS(G$17:G29)-1) -> 12 | H29: 1491.43159 | I29: 655.7462155 | J29: 835.6853749 | K29: 190158.358
A30: =IF(ROWS(A$17:A30)-1>B$9,"",ROWS(A$17:A30)-1) -> 13 | B30: 1258.212805 | C30: 940.6284999 | D30: 317.5843049 | E30: 195987.4939 | G30: =IF(ROWS(G$17:G30)-1>E$9,"",ROWS(G$17:G30)-1) -> 13 | H30: 1491.43159 | I30: 652.877029 | J30: 838.5545613 | K30: 189319.8034
A31: =IF(ROWS(A$17:A31)-1>B$9,"",ROWS(A$17:A31)-1) -> 14 | B31: 1258.212805 | C31: 939.1067418 | D31: 319.106063 | E31: 195668.3879 | G31: =IF(ROWS(G$17:G31)-1>E$9,"",ROWS(G$17:G31)-1) -> 14 | H31: 1491.43159 | I31: 649.9979917 | J31: 841.4335987 | K31: 188478.3698
A32: =IF(ROWS(A$17:A32)-1>B$9,"",ROWS(A$17:A32)-1) -> 15 | B32: 1258.212805 | C32: 937.5776919 | D32: 320.6351129 | E32: 195347.7528 | G32: =IF(ROWS(G$17:G32)-1>E$9,"",ROWS(G$17:G32)-1) -> 15 | H32: 1491.43159 | I32: 647.1090697 | J32: 844.3225207 | K32: 187634.0473
A33: =IF(ROWS(A$17:A33)-1>B$9,"",ROWS(A$17:A33)-1) -> 16 | B33: 1258.212805 | C33: 936.0413153 | D33: 322.1714895 | E33: 195025.5813 | G33: =IF(ROWS(G$17:G33)-1>E$9,"",ROWS(G$17:G33)-1) -> 16 | H33: 1491.43159 | I33: 644.210229 | J33: 847.2213614 | K33: 186786.8259
A34: =IF(ROWS(A$17:A34)-1>B$9,"",ROWS(A$17:A34)-1) -> 17 | B34: 1258.212805 | C34: 934.4975769 | D34: 323.7152279 | E34: 194701.866 | G34: =IF(ROWS(G$17:G34)-1>E$9,"",ROWS(G$17:G34)-1) -> 17 | H34: 1491.43159 | I34: 641.3014357 | J34: 850.1301547 | K34: 185936.6958
A35: =IF(ROWS(A$17:A35)-1>B$9,"",ROWS(A$17:A35)-1) -> 18 | B35: 1258.212805 | C35: 932.9464415 | D35: 325.2663634 | E35: 194376.5997 | G35: =IF(ROWS(G$17:G35)-1>E$9,"",ROWS(G$17:G35)-1) -> 18 | H35: 1491.43159 | I35: 638.3826555 | J35: 853.0489349 | K35: 185083.6468
A36: =IF(ROWS(A$17:A36)-1>B$9,"",ROWS(A$17:A36)-1) -> 19 | B36: 1258.212805 | C36: 931.3878735 | D36: 326.8249314 | E36: 194049.7748 | G36: =IF(ROWS(G$17:G36)-1>E$9,"",ROWS(G$17:G36)-1) -> 19 | H36: 1491.43159 | I36: 635.4538541 | J36: 855.9777362 | K36: 184227.6691
A37: =IF(ROWS(A$17:A37)-1>B$9,"",ROWS(A$17:A37)-1) -> 20 | B37: 1258.212805 | C37: 929.8218374 | D37: 328.3909675 | E37: 193721.3838 | G37: =IF(ROWS(G$17:G37)-1>E$9,"",ROWS(G$17:G37)-1) -> 20 | H37: 1491.43159 | I37: 632.5149972 | J37: 858.9165931 | K37: 183368.7525
A38: =IF(ROWS(A$17:A38)-1>B$9,"",ROWS(A$17:A38)-1) -> 21 | B38: 1258.212805 | C38: 928.2482973 | D38: 329.9645075 | E38: 193391.4193 | G38: =IF(ROWS(G$17:G38)-1>E$9,"",ROWS(G$17:G38)-1) -> 21 | H38: 1491.43159 | I38: 629.5660503 | J38: 861.8655401 | K38: 182506.887
A39: =IF(ROWS(A$17:A39)-1>B$9,"",ROWS(A$17:A39)-1) -> 22 | B39: 1258.212805 | C39: 926.6672174 | D39: 331.5455875 | E39: 193059.8737 | G39: =IF(ROWS(G$17:G39)-1>E$9,"",ROWS(G$17:G39)-1) -> 22 | H39: 1491.43159 | I39: 626.6069786 | J39: 864.8246118 | K39: 181642.0624
A40: =IF(ROWS(A$17:A40)-1>B$9,"",ROWS(A$17:A40)-1) -> 23 | B40: 1258.212805 | C40: 925.0785614 | D40: 333.1342434 | E40: 192726.7394 | G40: =IF(ROWS(G$17:G40)-1>E$9,"",ROWS(G$17:G40)-1) -> 23 | H40: 1491.43159 | I40: 623.6377474 | J40: 867.793843 | K40: 180774.2685
A41: =IF(ROWS(A$17:A41)-1>B$9,"",ROWS(A$17:A41)-1) -> 24 | B41: 1258.212805 | C41: 923.4822932 | D41: 334.7305117 | E41: 192392.0089 | G41: =IF(ROWS(G$17:G41)-1>E$9,"",ROWS(G$17:G41)-1) -> 24 | H41: 1491.43159 | I41: 620.6583219 | J41: 870.7732685 | K41: 179903.4952
A42: =IF(ROWS(A$17:A42)-1>B$9,"",ROWS(A$17:A42)-1) -> 25 | B42: 1258.212805 | C42: 921.8783762 | D42: 336.3344287 | E42: 192055.6745 | G42: =IF(ROWS(G$17:G42)-1>E$9,"",ROWS(G$17:G42)-1) -> 25 | H42: 1491.43159 | I42: 617.668667 | J42: 873.7629234 | K42: 179029.7323
A43: =IF(ROWS(A$17:A43)-1>B$9,"",ROWS(A$17:A43)-1) -> 26 | B43: 1258.212805 | C43: 920.2667737 | D43: 337.9460312 | E43: 191717.7285 | G43: =IF(ROWS(G$17:G43)-1>E$9,"",ROWS(G$17:G43)-1) -> 26 | H43: 1491.43159 | I43: 614.6687476 | J43: 876.7628427 | K43: 178152.9695
A44: =IF(ROWS(A$17:A44)-1>B$9,"",ROWS(A$17:A44)-1) -> 27 | B44: 1258.212805 | C44: 918.6474489 | D44: 339.5653559 | E44: 191378.1631 | G44: =IF(ROWS(G$17:G44)-1>E$9,"",ROWS(G$17:G44)-1) -> 27 | H44: 1491.43159 | I44: 611.6585285 | J44: 879.7730618 | K44: 177273.1964
A45: =IF(ROWS(A$17:A45)-1>B$9,"",ROWS(A$17:A45)-1) -> 28 | B45: 1258.212805 | C45: 917.020365 | D45: 341.1924399 | E45: 191036.9707 | G45: =IF(ROWS(G$17:G45)-1>E$9,"",ROWS(G$17:G45)-1) -> 28 | H45: 1491.43159 | I45: 608.6379744 | J45: 882.793616 | K45: 176390.4028
A46: =IF(ROWS(A$17:A46)-1>B$9,"",ROWS(A$17:A46)-1) -> 29 | B46: 1258.212805 | C46: 915.3854845 | D46: 342.8273203 | E46: 190694.1434 | G46: =IF(ROWS(G$17:G46)-1>E$9,"",ROWS(G$17:G46)-1) -> 29 | H46: 1491.43159 | I46: 605.6070496 | J46: 885.8245408 | K46: 175504.5783
A47: =IF(ROWS(A$17:A47)-1>B$9,"",ROWS(A$17:A47)-1) -> 30 | B47: 1258.212805 | C47: 913.7427703 | D47: 344.4700346 | E47: 190349.6733 | G47: =IF(ROWS(G$17:G47)-1>E$9,"",ROWS(G$17:G47)-1) -> 30 | H47: 1491.43159 | I47: 602.5657187 | J47: 888.8658717 | K47: 174615.7124
A48: =IF(ROWS(A$17:A48)-1>B$9,"",ROWS(A$17:A48)-1) -> 31 | B48: 1258.212805 | C48: 912.0921847 | D48: 346.1206202 | E48: 190003.5527 | G48: =IF(ROWS(G$17:G48)-1>E$9,"",ROWS(G$17:G48)-1) -> 31 | H48: 1491.43159 | I48: 599.5139459 | J48: 891.9176445 | K48: 173723.7947
A49: =IF(ROWS(A$17:A49)-1>B$9,"",ROWS(A$17:A49)-1) -> 32 | B49: 1258.212805 | C49: 910.43369 | D49: 347.7791148 | E49: 189655.7736 | G49: =IF(ROWS(G$17:G49)-1>E$9,"",ROWS(G$17:G49)-1) -> 32 | H49: 1491.43159 | I49: 596.4516953 | J49: 894.9798951 | K49: 172828.8148
A50: =IF(ROWS(A$17:A50)-1>B$9,"",ROWS(A$17:A50)-1) -> 33 | B50: 1258.212805 | C50: 908.7672485 | D50: 349.4455564 | E50: 189306.328 | G50: =IF(ROWS(G$17:G50)-1>E$9,"",ROWS(G$17:G50)-1) -> 33 | H50: 1491.43159 | I50: 593.378931 | J50: 898.0526594 | K50: 171930.7622
A51: =IF(ROWS(A$17:A51)-1>B$9,"",ROWS(A$17:A51)-1) -> 34 | B51: 1258.212805 | C51: 907.0928218 | D51: 351.119983 | E51: 188955.2081 | G51: =IF(ROWS(G$17:G51)-1>E$9,"",ROWS(G$17:G51)-1) -> 34 | H51: 1491.43159 | I51: 590.2956168 | J51: 901.1359735 | K51: 171029.6262
A52: =IF(ROWS(A$17:A52)-1>B$9,"",ROWS(A$17:A52)-1) -> 35 | B52: 1258.212805 | C52: 905.4103719 | D52: 352.8024329 | E52: 188602.4056 | G52: =IF(ROWS(G$17:G52)-1>E$9,"",ROWS(G$17:G52)-1) -> 35 | H52: 1491.43159 | I52: 587.2017167 | J52: 904.2298737 | K52: 170125.3963
A53: =IF(ROWS(A$17:A53)-1>B$9,"",ROWS(A$17:A53)-1) -> 36 | B53: 1258.212805 | C53: 903.7198603 | D53: 354.4929446 | E53: 188247.9127 | G53: =IF(ROWS(G$17:G53)-1>E$9,"",ROWS(G$17:G53)-1) -> 36 | H53: 1491.43159 | I53: 584.0971941 | J53: 907.3343963 | K53: 169218.0619
A54: =IF(ROWS(A$17:A54)-1>B$9,"",ROWS(A$17:A54)-1) -> 37 | B54: 1258.212805 | C54: 902.0212482 | D54: 356.1915566 | E54: 187891.7211 | G54: =IF(ROWS(G$17:G54)-1>E$9,"",ROWS(G$17:G54)-1) -> 37 | H54: 1491.43159 | I54: 580.9820127 | J54: 910.4495777 | K54: 168307.6124
A55: =IF(ROWS(A$17:A55)-1>B$9,"",ROWS(A$17:A55)-1) -> 38 | B55: 1258.212805 | C55: 900.314497 | D55: 357.8983078 | E55: 187533.8228 | G55: =IF(ROWS(G$17:G55)-1>E$9,"",ROWS(G$17:G55)-1) -> 38 | H55: 1491.43159 | I55: 577.8561358 | J55: 913.5754546 | K55: 167394.0369
A56: =IF(ROWS(A$17:A56)-1>B$9,"",ROWS(A$17:A56)-1) -> 39 | B56: 1258.212805 | C56: 898.5995676 | D56: 359.6132372 | E56: 187174.2096 | G56: =IF(ROWS(G$17:G56)-1>E$9,"",ROWS(G$17:G56)-1) -> 39 | H56: 1491.43159 | I56: 574.7195267 | J56: 916.7120636 | K56: 166477.3248
A57: =IF(ROWS(A$17:A57)-1>B$9,"",ROWS(A$17:A57)-1) -> 40 | B57: 1258.212805 | C57: 896.8764209 | D57: 361.336384 | E57: 186812.8732 | G57: =IF(ROWS(G$17:G57)-1>E$9,"",ROWS(G$17:G57)-1) -> 40 | H57: 1491.43159 | I57: 571.5721486 | J57: 919.8594417 | K57: 165557.4654
A58: =IF(ROWS(A$17:A58)-1>B$9,"",ROWS(A$17:A58)-1) -> 41 | B58: 1258.212805 | C58: 895.1450174 | D58: 363.0677875 | E58: 186449.8054 | G58: =IF(ROWS(G$17:G58)-1>E$9,"",ROWS(G$17:G58)-1) -> 41 | H58: 1491.43159 | I58: 568.4139646 | J58: 923.0176258 | K58: 164634.4478
A59: =IF(ROWS(A$17:A59)-1>B$9,"",ROWS(A$17:A59)-1) -> 42 | B59: 1258.212805 | C59: 893.4053175 | D59: 364.8074873 | E59: 186084.9979 | G59: =IF(ROWS(G$17:G59)-1>E$9,"",ROWS(G$17:G59)-1) -> 42 | H59: 1491.43159 | I59: 565.2449374 | J59: 926.186653 | K59: 163708.2611
A60: =IF(ROWS(A$17:A60)-1>B$9,"",ROWS(A$17:A60)-1) -> 43 | B60: 1258.212805 | C60: 891.6572817 | D60: 366.5555232 | E60: 185718.4424 | G60: =IF(ROWS(G$17:G60)-1>E$9,"",ROWS(G$17:G60)-1) -> 43 | H60: 1491.43159 | I60: 562.0650299 | J60: 929.3665605 | K60: 162778.8946
A61: =IF(ROWS(A$17:A61)-1>B$9,"",ROWS(A$17:A61)-1) -> 44 | B61: 1258.212805 | C61: 889.9008698 | D61: 368.3119351 | E61: 185350.1305 | G61: =IF(ROWS(G$17:G61)-1>E$9,"",ROWS(G$17:G61)-1) -> 44 | H61: 1491.43159 | I61: 558.8742047 | J61: 932.5573857 | K61: 161846.3372
A62: =IF(ROWS(A$17:A62)-1>B$9,"",ROWS(A$17:A62)-1) -> 45 | B62: 1258.212805 | C62: 888.1360418 | D62: 370.0767631 | E62: 184980.0537 | G62: =IF(ROWS(G$17:G62)-1>E$9,"",ROWS(G$17:G62)-1) -> 45 | H62: 1491.43159 | I62: 555.6724243 | J62: 935.759166 | K62: 160910.578
A63: =IF(ROWS(A$17:A63)-1>B$9,"",ROWS(A$17:A63)-1) -> 46 | B63: 1258.212805 | C63: 886.3627573 | D63: 371.8500476 | E63: 184608.2036 | G63: =IF(ROWS(G$17:G63)-1>E$9,"",ROWS(G$17:G63)-1) -> 46 | H63: 1491.43159 | I63: 552.4596512 | J63: 938.9719392 | K63: 159971.6061
A64: =IF(ROWS(A$17:A64)-1>B$9,"",ROWS(A$17:A64)-1) -> 47 | B64: 1258.212805 | C64: 884.5809758 | D64: 373.6318291 | E64: 184234.5718 | G64: =IF(ROWS(G$17:G64)-1>E$9,"",ROWS(G$17:G64)-1) -> 47 | H64: 1491.43159 | I64: 549.2358475 | J64: 942.1957428 | K64: 159029.4103
A65: =IF(ROWS(A$17:A65)-1>B$9,"",ROWS(A$17:A65)-1) -> 48 | B65: 1258.212805 | C65: 882.7906566 | D65: 375.4221482 | E65: 183859.1497 | G65: =IF(ROWS(G$17:G65)-1>E$9,"",ROWS(G$17:G65)-1) -> 48 | H65: 1491.43159 | I65: 546.0009755 | J65: 945.4306149 | K65: 158083.9797
A66: =IF(ROWS(A$17:A66)-1>B$9,"",ROWS(A$17:A66)-1) -> 49 | B66: 1258.212805 | C66: 880.9917588 | D66: 377.221046 | E66: 183481.9286 | G66: =IF(ROWS(G$17:G66)-1>E$9,"",ROWS(G$17:G66)-1) -> 49 | H66: 1491.43159 | I66: 542.754997 | J66: 948.6765933 | K66: 157135.3031
A67: =IF(ROWS(A$17:A67)-1>B$9,"",ROWS(A$17:A67)-1) -> 50 | B67: 1258.212805 | C67: 879.1842413 | D67: 379.0285635 | E67: 183102.9001 | G67: =IF(ROWS(G$17:G67)-1>E$9,"",ROWS(G$17:G67)-1) -> 50 | H67: 1491.43159 | I67: 539.4978741 | J67: 951.9337163 | K67: 156183.3694
A68: =IF(ROWS(A$17:A68)-1>B$9,"",ROWS(A$17:A68)-1) -> 51 | B68: 1258.212805 | C68: 877.3680628 | D68: 380.8447421 | E68: 182722.0553 | G68: =IF(ROWS(G$17:G68)-1>E$9,"",ROWS(G$17:G68)-1) -> 51 | H68: 1491.43159 | I68: 536.2295683 | J68: 955.2020221 | K68: 155228.1674
A69: =IF(ROWS(A$17:A69)-1>B$9,"",ROWS(A$17:A69)-1) -> 52 | B69: 1258.212805 | C69: 875.5431817 | D69: 382.6696231 | E69: 182339.3857 | G69: =IF(ROWS(G$17:G69)-1>E$9,"",ROWS(G$17:G69)-1) -> 52 | H69: 1491.43159 | I69: 532.9500414 | J69: 958.481549 | K69: 154269.6858
A70: =IF(ROWS(A$17:A70)-1>B$9,"",ROWS(A$17:A70)-1) -> 53 | B70: 1258.212805 | C70: 873.7095564 | D70: 384.5032484 | E70: 181954.8824 | G70: =IF(ROWS(G$17:G70)-1>E$9,"",ROWS(G$17:G70)-1) -> 53 | H70: 1491.43159 | I70: 529.6592547 | J70: 961.7723357 | K70: 153307.9135
A71: =IF(ROWS(A$17:A71)-1>B$9,"",ROWS(A$17:A71)-1) -> 54 | B71: 1258.212805 | C71: 871.867145 | D71: 386.3456598 | E71: 181568.5368 | G71: =IF(ROWS(G$17:G71)-1>E$9,"",ROWS(G$17:G71)-1) -> 54 | H71: 1491.43159 | I71: 526.3571697 | J71: 965.0744207 | K71: 152342.8391
A72: =IF(ROWS(A$17:A72)-1>B$9,"",ROWS(A$17:A72)-1) -> 55 | B72: 1258.212805 | C72: 870.0159054 | D72: 388.1968994 | E72: 181180.3399 | G72: =IF(ROWS(G$17:G72)-1>E$9,"",ROWS(G$17:G72)-1) -> 55 | H72: 1491.43159 | I72: 523.0437475 | J72: 968.3878429 | K72: 151374.4512
A73: =IF(ROWS(A$17:A73)-1>B$9,"",ROWS(A$17:A73)-1) -> 56 | B73: 1258.212805 | C73: 868.1557953 | D73: 390.0570096 | E73: 180790.2829 | G73: =IF(ROWS(G$17:G73)-1>E$9,"",ROWS(G$17:G73)-1) -> 56 | H73: 1491.43159 | I73: 519.7189493 | J73: 971.7126411 | K73: 150402.7386
A74: =IF(ROWS(A$17:A74)-1>B$9,"",ROWS(A$17:A74)-1) -> 57 | B74: 1258.212805 | C74: 866.2867721 | D74: 391.9260327 | E74: 180398.3568 | G74: =IF(ROWS(G$17:G74)-1>E$9,"",ROWS(G$17:G74)-1) -> 57 | H74: 1491.43159 | I74: 516.3827359 | J74: 975.0488545 | K74: 149427.6897
A75: =IF(ROWS(A$17:A75)-1>B$9,"",ROWS(A$17:A75)-1) -> 58 | B75: 1258.212805 | C75: 864.4087932 | D75: 393.8040116 | E75: 180004.5528 | G75: =IF(ROWS(G$17:G75)-1>E$9,"",ROWS(G$17:G75)-1) -> 58 | H75: 1491.43159 | I75: 513.0350681 | J75: 978.3965223 | K75: 148449.2932
A76: =IF(ROWS(A$17:A76)-1>B$9,"",ROWS(A$17:A76)-1) -> 59 | B76: 1258.212805 | C76: 862.5218156 | D76: 395.6909892 | E76: 179608.8618 | G76: =IF(ROWS(G$17:G76)-1>E$9,"",ROWS(G$17:G76)-1) -> 59 | H76: 1491.43159 | I76: 509.6759067 | J76: 981.7556836 | K76: 147467.5375
A77: =IF(ROWS(A$17:A77)-1>B$9,"",ROWS(A$17:A77)-1) -> 60 | B77: 1258.212805 | C77: 860.6257963 | D77: 397.5870085 | E77: 179211.2748 | G77: =IF(ROWS(G$17:G77)-1>E$9,"",ROWS(G$17:G77)-1) -> 60 | H77: 1491.43159 | I77: 506.3052122 | J77: 985.1263782 | K77: 146482.4112
A78: =IF(ROWS(A$17:A78)-1>B$9,"",ROWS(A$17:A78)-1) -> 61 | B78: 1258.212805 | C78: 858.7206919 | D78: 399.4921129 | E78: 178811.7827 | G78: =IF(ROWS(G$17:G78)-1>E$9,"",ROWS(G$17:G78)-1) -> 61 | H78: 1491.43159 | I78: 502.922945 | J78: 988.5086454 | K78: 145493.9025
A79: =IF(ROWS(A$17:A79)-1>B$9,"",ROWS(A$17:A79)-1) -> 62 | B79: 1258.212805 | C79: 856.8064589 | D79: 401.406346 | E79: 178410.3764 | G79: =IF(ROWS(G$17:G79)-1>E$9,"",ROWS(G$17:G79)-1) -> 62 | H79: 1491.43159 | I79: 499.5290653 | J79: 991.9025251 | K79: 144502
A80: =IF(ROWS(A$17:A80)-1>B$9,"",ROWS(A$17:A80)-1) -> 63 | B80: 1258.212805 | C80: 854.8830535 | D80: 403.3297514 | E80: 178007.0466 | G80: =IF(ROWS(G$17:G80)-1>E$9,"",ROWS(G$17:G80)-1) -> 63 | H80: 1491.43159 | I80: 496.1235333 | J80: 995.3080571 | K80: 143506.6919
A81: =IF(ROWS(A$17:A81)-1>B$9,"",ROWS(A$17:A81)-1) -> 64 | B81: 1258.212805 | C81: 852.9504317 | D81: 405.2623731 | E81: 177601.7842 | G81: =IF(ROWS(G$17:G81)-1>E$9,"",ROWS(G$17:G81)-1) -> 64 | H81: 1491.43159 | I81: 492.706309 | J81: 998.7252814 | K81: 142507.9666
A82: =IF(ROWS(A$17:A82)-1>B$9,"",ROWS(A$17:A82)-1) -> 65 | B82: 1258.212805 | C82: 851.0085495 | D82: 407.2042553 | E82: 177194.58 | G82: =IF(ROWS(G$17:G82)-1>E$9,"",ROWS(G$17:G82)-1) -> 65 | H82: =IF(G82="","",E$10) -> 1491.43159 | I82: =IF(G82="","",K81*E$7) -> 489.2773522 | J82: 1002.154238 | K82: 141505.8124
A83: =IF(ROWS(A$17:A83)-1>B$9,"",ROWS(A$17:A83)-1) -> 66 | B83: =IF(A83="","",B$10) -> 1258.212805 | C83: =IF(A83="","",E82*B$7) -> 849.0573625 | D83: =IF(A83="","",B83-C83) -> 409.1554424 | E83: =IF(A83="","",E82-D83) -> 176785.4246 | G83: =IF(ROWS(G$17:G83)-1>E$9,"",ROWS(G$17:G83)-1) -> 66 | H83: 1491.43159 | I83: 485.8366226 | J83: =IF(G83="","",H83-I83) -> 1005.594968 | K83: =IF(G83="","",K82-J83) -> 140500.2174
A84: =IF(ROWS(A$17:A84)-1>B$9,"",ROWS(A$17:A84)-1) -> 67 | B84: 1258.212805 | C84: 847.096826 | D84: 411.1159789 | E84: 176374.3086 | G84: =IF(ROWS(G$17:G84)-1>E$9,"",ROWS(G$17:G84)-1) -> 67 | H84: 1491.43159 | I84: 482.3840799 | J84: 1009.04751 | K84: 139491.1699
A85: =IF(ROWS(A$17:A85)-1>B$9,"",ROWS(A$17:A85)-1) -> 68 | B85: 1258.212805 | C85: 845.1268952 | D85: 413.0859096 | E85: 175961.2227 | G85: =IF(ROWS(G$17:G85)-1>E$9,"",ROWS(G$17:G85)-1) -> 68 | H85: 1491.43159 | I85: 478.9196834 | J85: 1012.511907 | K85: 138478.658
A86: =IF(ROWS(A$17:A86)-1>B$9,"",ROWS(A$17:A86)-1) -> 69 | B86: 1258.212805 | C86: 843.1475253 | D86: 415.0652796 | E86: 175546.1574 | G86: =IF(ROWS(G$17:G86)-1>E$9,"",ROWS(G$17:G86)-1) -> 69 | H86: 1491.43159 | I86: 475.4433926 | J86: 1015.988198 | K86: 137462.6698
A87: =IF(ROWS(A$17:A87)-1>B$9,"",ROWS(A$17:A87)-1) -> 70 | B87: 1258.212805 | C87: 841.1586708 | D87: 417.054134 | E87: 175129.1032 | G87: =IF(ROWS(G$17:G87)-1>E$9,"",ROWS(G$17:G87)-1) -> 70 | H87: 1491.43159 | I87: 471.9551664 | J87: 1019.476424 | K87: 136443.1934
A88: =IF(ROWS(A$17:A88)-1>B$9,"",ROWS(A$17:A88)-1) -> 71 | B88: 1258.212805 | C88: 839.1602864 | D88: 419.0525184 | E88: 174710.0507 | G88: =IF(ROWS(G$17:G88)-1>E$9,"",ROWS(G$17:G88)-1) -> 71 | H88: 1491.43159 | I88: 468.454964 | J88: 1022.976626 | K88: 135420.2168
A89: =IF(ROWS(A$17:A89)-1>B$9,"",ROWS(A$17:A89)-1) -> 72 | B89: 1258.212805 | C89: 837.1523264 | D89: 421.0604784 | E89: 174288.9903 | G89: =IF(ROWS(G$17:G89)-1>E$9,"",ROWS(G$17:G89)-1) -> 72 | H89: 1491.43159 | I89: 464.9427443 | J89: 1026.488846 | K89: 134393.7279
A90: =IF(ROWS(A$17:A90)-1>B$9,"",ROWS(A$17:A90)-1) -> 73 | B90: 1258.212805 | C90: 835.134745 | D90: 423.0780599 | E90: 173865.9122 | G90: =IF(ROWS(G$17:G90)-1>E$9,"",ROWS(G$17:G90)-1) -> 73 | H90: 1491.43159 | I90: 461.4184659 | J90: 1030.013124 | K90: 133363.7148
A91: =IF(ROWS(A$17:A91)-1>B$9,"",ROWS(A$17:A91)-1) -> 74 | B91: 1258.212805 | C91: 833.1074959 | D91: 425.1053089 | E91: 173440.8069 | G91: =IF(ROWS(G$17:G91)-1>E$9,"",ROWS(G$17:G91)-1) -> 74 | H91: 1491.43159 | I91: 457.8820875 | J91: 1033.549503 | K91: 132330.1653
A92: =IF(ROWS(A$17:A92)-1>B$9,"",ROWS(A$17:A92)-1) -> 75 | B92: 1258.212805 | C92: 831.070533 | D92: 427.1422719 | E92: 173013.6646 | G92: =IF(ROWS(G$17:G92)-1>E$9,"",ROWS(G$17:G92)-1) -> 75 | H92: 1491.43159 | I92: 454.3335675 | J92: 1037.098023 | K92: 131293.0673
A93: =IF(ROWS(A$17:A93)-1>B$9,"",ROWS(A$17:A93)-1) -> 76 | B93: 1258.212805 | C93: 829.0238096 | D93: 429.1889952 | E93: 172584.4756 | G93: =IF(ROWS(G$17:G93)-1>E$9,"",ROWS(G$17:G93)-1) -> 76 | H93: 1491.43159 | I93: 450.7728643 | J93: 1040.658726 | K93: 130252.4086
A94: =IF(ROWS(A$17:A94)-1>B$9,"",ROWS(A$17:A94)-1) -> 77 | B94: 1258.212805 | C94: 826.967279 | D94: 431.2455258 | E94: 172153.2301 | G94: =IF(ROWS(G$17:G94)-1>E$9,"",ROWS(G$17:G94)-1) -> 77 | H94: 1491.43159 | I94: 447.199936 | J94: 1044.231654 | K94: 129208.1769
A95: =IF(ROWS(A$17:A95)-1>B$9,"",ROWS(A$17:A95)-1) -> 78 | B95: 1258.212805 | C95: 824.9008942 | D95: 433.3119107 | E95: 171719.9182 | G95: =IF(ROWS(G$17:G95)-1>E$9,"",ROWS(G$17:G95)-1) -> 78 | H95: 1491.43159 | I95: 443.6147407 | J95: 1047.81685 | K95: 128160.3601
A96: =IF(ROWS(A$17:A96)-1>B$9,"",ROWS(A$17:A96)-1) -> 79 | B96: 1258.212805 | C96: 822.8246079 | D96: 435.3881969 | E96: 171284.53 | G96: =IF(ROWS(G$17:G96)-1>E$9,"",ROWS(G$17:G96)-1) -> 79 | H96: 1491.43159 | I96: 440.0172362 | J96: 1051.414354 | K96: 127108.9457
A97: =IF(ROWS(A$17:A97)-1>B$9,"",ROWS(A$17:A97)-1) -> 80 | B97: 1258.212805 | C97: 820.7383728 | D97: 437.474432 | E97: 170847.0556 | G97: =IF(ROWS(G$17:G97)-1>E$9,"",ROWS(G$17:G97)-1) -> 80 | H97: 1491.43159 | I97: 436.4073802 | J97: 1055.02421 | K97: 126053.9215
A98: =IF(ROWS(A$17:A98)-1>B$9,"",ROWS(A$17:A98)-1) -> 81 | B98: 1258.212805 | C98: 818.6421412 | D98: 439.5706637 | E98: 170407.4849 | G98: =IF(ROWS(G$17:G98)-1>E$9,"",ROWS(G$17:G98)-1) -> 81 | H98: 1491.43159 | I98: 432.7851304 | J98: 1058.64646 | K98: 124995.275
A99: =IF(ROWS(A$17:A99)-1>B$9,"",ROWS(A$17:A99)-1) -> 82 | B99: 1258.212805 | C99: 816.5358651 | D99: 441.6769398 | E99: 169965.8079 | G99: =IF(ROWS(G$17:G99)-1>E$9,"",ROWS(G$17:G99)-1) -> 82 | H99: 1491.43159 | I99: 429.1504443 | J99: 1062.281146 | K99: 123932.9939
A100: =IF(ROWS(A$17:A100)-1>B$9,"",ROWS(A$17:A100)-1) -> 83 | B100: 1258.212805 | C100: 814.4194964 | D100: 443.7933084 | E100: 169522.0146 | G100: =IF(ROWS(G$17:G100)-1>E$9,"",ROWS(G$17:G100)-1) -> 83 | H100: 1491.43159 | I100: 425.503279 | J100: 1065.928311 | K100: 122867.0656
A101: =IF(ROWS(A$17:A101)-1>B$9,"",ROWS(A$17:A101)-1) -> 84 | B101: 1258.212805 | C101: 812.2929868 | D101: 445.919818 | E101: 169076.0948 | G101: =IF(ROWS(G$17:G101)-1>E$9,"",ROWS(G$17:G101)-1) -> 84 | H101: 1491.43159 | I101: 421.8435918 | J101: 1069.587999 | K101: 121797.4776
A102: =IF(ROWS(A$17:A102)-1>B$9,"",ROWS(A$17:A102)-1) -> 85 | B102: 1258.212805 | C102: 810.1562877 | D102: 448.0565172 | E102: 168628.0383 | G102: =IF(ROWS(G$17:G102)-1>E$9,"",ROWS(G$17:G102)-1) -> 85 | H102: 1491.43159 | I102: 418.1713397 | J102: 1073.260251 | K102: 120724.2173
A103: =IF(ROWS(A$17:A103)-1>B$9,"",ROWS(A$17:A103)-1) -> 86 | B103: 1258.212805 | C103: 808.0093502 | D103: 450.2034546 | E103: 168177.8348 | G103: =IF(ROWS(G$17:G103)-1>E$9,"",ROWS(G$17:G103)-1) -> 86 | H103: 1491.43159 | I103: 414.4864795 | J103: 1076.945111 | K103: 119647.2722
A104: =IF(ROWS(A$17:A104)-1>B$9,"",ROWS(A$17:A104)-1) -> 87 | B104: 1258.212805 | C104: 805.8521253 | D104: 452.3606795 | E104: 167725.4742 | G104: =IF(ROWS(G$17:G104)-1>E$9,"",ROWS(G$17:G104)-1) -> 87 | H104: 1491.43159 | I104: 410.7889679 | J104: 1080.642622 | K104: 118566.6296
A105: =IF(ROWS(A$17:A105)-1>B$9,"",ROWS(A$17:A105)-1) -> 88 | B105: 1258.212805 | C105: 803.6845637 | D105: 454.5282411 | E105: 167270.9459 | G105: =IF(ROWS(G$17:G105)-1>E$9,"",ROWS(G$17:G105)-1) -> 88 | H105: 1491.43159 | I105: 407.0787616 | J105: 1084.352829 | K105: 117482.2768
A106: =IF(ROWS(A$17:A106)-1>B$9,"",ROWS(A$17:A106)-1) -> 89 | B106: 1258.212805 | C106: 801.5066159 | D106: 456.7061889 | E106: 166814.2397 | G106: =IF(ROWS(G$17:G106)-1>E$9,"",ROWS(G$17:G106)-1) -> 89 | H106: 1491.43159 | I106: 403.3558169 | J106: 1088.075773 | K106: 116394.201
A107: =IF(ROWS(A$17:A107)-1>B$9,"",ROWS(A$17:A107)-1) -> 90 | B107: 1258.212805 | C107: 799.3182321 | D107: 458.8945728 | E107: 166355.3452 | G107: =IF(ROWS(G$17:G107)-1>E$9,"",ROWS(G$17:G107)-1) -> 90 | H107: 1491.43159 | I107: 399.62009 | J107: 1091.8115 | K107: 115302.3895
A108: =IF(ROWS(A$17:A108)-1>B$9,"",ROWS(A$17:A108)-1) -> 91 | B108: 1258.212805 | C108: 797.1193623 | D108: 461.0934426 | E108: 165894.2517 | G108: =IF(ROWS(G$17:G108)-1>E$9,"",ROWS(G$17:G108)-1) -> 91 | H108: 1491.43159 | I108: 395.8715372 | J108: 1095.560053 | K108: 114206.8294
A109: =IF(ROWS(A$17:A109)-1>B$9,"",ROWS(A$17:A109)-1) -> 92 | B109: 1258.212805 | C109: 794.9099562 | D109: 463.3028487 | E109: 165430.9489 | G109: =IF(ROWS(G$17:G109)-1>E$9,"",ROWS(G$17:G109)-1) -> 92 | H109: 1491.43159 | I109: 392.1101144 | J109: 1099.321476 | K109: 113107.508
A110: =IF(ROWS(A$17:A110)-1>B$9,"",ROWS(A$17:A110)-1) -> 93 | B110: 1258.212805 | C110: 792.6899634 | D110: 465.5228415 | E110: 164965.426 | G110: =IF(ROWS(G$17:G110)-1>E$9,"",ROWS(G$17:G110)-1) -> 93 | H110: 1491.43159 | I110: 388.3357773 | J110: 1103.095813 | K110: 112004.4121
A111: =IF(ROWS(A$17:A111)-1>B$9,"",ROWS(A$17:A111)-1) -> 94 | B111: 1258.212805 | C111: 790.4593331 | D111: 467.7534718 | E111: 164497.6726 | G111: =IF(ROWS(G$17:G111)-1>E$9,"",ROWS(G$17:G111)-1) -> 94 | H111: 1491.43159 | I111: 384.5484817 | J111: 1106.883109 | K111: 110897.529
A112: =IF(ROWS(A$17:A112)-1>B$9,"",ROWS(A$17:A112)-1) -> 95 | B112: 1258.212805 | C112: 788.2180144 | D112: 469.9947905 | E112: 164027.6778 | G112: =IF(ROWS(G$17:G112)-1>E$9,"",ROWS(G$17:G112)-1) -> 95 | H112: 1491.43159 | I112: 380.748183 | J112: 1110.683407 | K112: 109786.8456
A113: =IF(ROWS(A$17:A113)-1>B$9,"",ROWS(A$17:A113)-1) -> 96 | B113: 1258.212805 | C113: 785.965956 | D113: 472.2468489 | E113: 163555.4309 | G113: =IF(ROWS(G$17:G113)-1>E$9,"",ROWS(G$17:G113)-1) -> 96 | H113: 1491.43159 | I113: 376.9348367 | J113: 1114.496754 | K113: 108672.3489
A114: =IF(ROWS(A$17:A114)-1>B$9,"",ROWS(A$17:A114)-1) -> 97 | B114: 1258.212805 | C114: 783.7031065 | D114: 474.5096983 | E114: 163080.9212 | G114: =IF(ROWS(G$17:G114)-1>E$9,"",ROWS(G$17:G114)-1) -> 97 | H114: 1491.43159 | I114: 373.1083978 | J114: 1118.323193 | K114: 107554.0257
A115: =IF(ROWS(A$17:A115)-1>B$9,"",ROWS(A$17:A115)-1) -> 98 | B115: 1258.212805 | C115: 781.4294142 | D115: 476.7833906 | E115: 162604.1378 | G115: =IF(ROWS(G$17:G115)-1>E$9,"",ROWS(G$17:G115)-1) -> 98 | H115: 1491.43159 | I115: 369.2688215 | J115: 1122.162769 | K115: 106431.8629
A116: =IF(ROWS(A$17:A116)-1>B$9,"",ROWS(A$17:A116)-1) -> 99 | B116: 1258.212805 | C116: 779.1448271 | D116: 479.0679777 | E116: 162125.0699 | G116: =IF(ROWS(G$17:G116)-1>E$9,"",ROWS(G$17:G116)-1) -> 99 | H116: 1491.43159 | I116: 365.4160627 | J116: 1126.015528 | K116: 105305.8474
A117: =IF(ROWS(A$17:A117)-1>B$9,"",ROWS(A$17:A117)-1) -> 100 | B117: 1258.212805 | C117: 776.8492931 | D117: 481.3635118 | E117: 161643.7063 | G117: =IF(ROWS(G$17:G117)-1>E$9,"",ROWS(G$17:G117)-1) -> 100 | H117: 1491.43159 | I117: 361.550076 | J117: 1129.881514 | K117: 104175.9659
A118: =IF(ROWS(A$17:A118)-1>B$9,"",ROWS(A$17:A118)-1) -> 101 | B118: 1258.212805 | C118: 774.5427596 | D118: 483.6700453 | E118: 161160.0363 | G118: =IF(ROWS(G$17:G118)-1>E$9,"",ROWS(G$17:G118)-1) -> 101 | H118: 1491.43159 | I118: 357.6708162 | J118: 1133.760774 | K118: 103042.2051
A119: =IF(ROWS(A$17:A119)-1>B$9,"",ROWS(A$17:A119)-1) -> 102 | B119: 1258.212805 | C119: 772.2251739 | D119: 485.9876309 | E119: 160674.0487 | G119: =IF(ROWS(G$17:G119)-1>E$9,"",ROWS(G$17:G119)-1) -> 102 | H119: 1491.43159 | I119: 353.7782375 | J119: 1137.653353 | K119: 101904.5517
A120: =IF(ROWS(A$17:A120)-1>B$9,"",ROWS(A$17:A120)-1) -> 103 | B120: 1258.212805 | C120: 769.8964832 | D120: 488.3163216 | E120: 160185.7323 | G120: =IF(ROWS(G$17:G120)-1>E$9,"",ROWS(G$17:G120)-1) -> 103 | H120: 1491.43159 | I120: 349.8722943 | J120: 1141.559296 | K120: 100762.9924
A121: =IF(ROWS(A$17:A121)-1>B$9,"",ROWS(A$17:A121)-1) -> 104 | B121: 1258.212805 | C121: 767.5566342 | D121: 490.6561707 | E121: 159695.0762 | G121: =IF(ROWS(G$17:G121)-1>E$9,"",ROWS(G$17:G121)-1) -> 104 | H121: 1491.43159 | I121: 345.9529407 | J121: 1145.47865 | K121: 99617.5138
A122: =IF(ROWS(A$17:A122)-1>B$9,"",ROWS(A$17:A122)-1) -> 105 | B122: 1258.212805 | C122: 765.2055733 | D122: 493.0072315 | E122: 159202.0689 | G122: =IF(ROWS(G$17:G122)-1>E$9,"",ROWS(G$17:G122)-1) -> 105 | H122: 1491.43159 | I122: 342.0201307 | J122: 1149.41146 | K122: 98468.10234
A123: =IF(ROWS(A$17:A123)-1>B$9,"",ROWS(A$17:A123)-1) -> 106 | B123: 1258.212805 | C123: 762.843247 | D123: 495.3695578 | E123: 158706.6994 | G123: =IF(ROWS(G$17:G123)-1>E$9,"",ROWS(G$17:G123)-1) -> 106 | H123: 1491.43159 | I123: 338.073818 | J123: 1153.357772 | K123: 97314.74456
A124: =IF(ROWS(A$17:A124)-1>B$9,"",ROWS(A$17:A124)-1) -> 107 | B124: 1258.212805 | C124: 760.4696012 | D124: 497.7432036 | E124: 158208.9562 | G124: =IF(ROWS(G$17:G124)-1>E$9,"",ROWS(G$17:G124)-1) -> 107 | H124: 1491.43159 | I124: 334.1139563 | J124: 1157.317634 | K124: 96157.42693
A125: =IF(ROWS(A$17:A125)-1>B$9,"",ROWS(A$17:A125)-1) -> 108 | B125: 1258.212805 | C125: 758.0845817 | D125: 500.1282231 | E125: 157708.828 | G125: =IF(ROWS(G$17:G125)-1>E$9,"",ROWS(G$17:G125)-1) -> 108 | H125: 1491.43159 | I125: 330.1404991 | J125: 1161.291091 | K125: 94996.13584
A126: =IF(ROWS(A$17:A126)-1>B$9,"",ROWS(A$17:A126)-1) -> 109 | B126: 1258.212805 | C126: 755.688134 | D126: 502.5246709 | E126: 157206.3033 | G126: =IF(ROWS(G$17:G126)-1>E$9,"",ROWS(G$17:G126)-1) -> 109 | H126: 1491.43159 | I126: 326.1533997 | J126: 1165.278191 | K126: 93830.85765
A127: =IF(ROWS(A$17:A127)-1>B$9,"",ROWS(A$17:A127)-1) -> 110 | B127: 1258.212805 | C127: 753.2802033 | D127: 504.9326016 | E127: 156701.3707 | G127: =IF(ROWS(G$17:G127)-1>E$9,"",ROWS(G$17:G127)-1) -> 110 | H127: 1491.43159 | I127: 322.1526113 | J127: 1169.278979 | K127: 92661.57867
A128: =IF(ROWS(A$17:A128)-1>B$9,"",ROWS(A$17:A128)-1) -> 111 | B128: 1258.212805 | C128: 750.8607345 | D128: 507.3520703 | E128: 156194.0186 | G128: =IF(ROWS(G$17:G128)-1>E$9,"",ROWS(G$17:G128)-1) -> 111 | H128: 1491.43159 | I128: 318.1380868 | J128: 1173.293504 | K128: 91488.28517
A129: =IF(ROWS(A$17:A129)-1>B$9,"",ROWS(A$17:A129)-1) -> 112 | B129: 1258.212805 | C129: 748.4296725 | D129: 509.7831323 | E129: 155684.2355 | G129: =IF(ROWS(G$17:G129)-1>E$9,"",ROWS(G$17:G129)-1) -> 112 | H129: 1491.43159 | I129: 314.1097791 | J129: 1177.321811 | K129: 90310.96335
A130: =IF(ROWS(A$17:A130)-1>B$9,"",ROWS(A$17:A130)-1) -> 113 | B130: 1258.212805 | C130: 745.9869617 | D130: 512.2258431 | E130: 155172.0096 | G130: =IF(ROWS(G$17:G130)-1>E$9,"",ROWS(G$17:G130)-1) -> 113 | H130: 1491.43159 | I130: 310.0676409 | J130: 1181.36395 | K130: 89129.59941
A131: =IF(ROWS(A$17:A131)-1>B$9,"",ROWS(A$17:A131)-1) -> 114 | B131: 1258.212805 | C131: 743.5325462 | D131: 514.6802586 | E131: 154657.3294 | G131: =IF(ROWS(G$17:G131)-1>E$9,"",ROWS(G$17:G131)-1) -> 114 | H131: 1491.43159 | I131: 306.0116246 | J131: 1185.419966 | K131: 87944.17944
A132: =IF(ROWS(A$17:A132)-1>B$9,"",ROWS(A$17:A132)-1) -> 115 | B132: 1258.212805 | C132: 741.06637 | D132: 517.1464349 | E132: 154140.1829 | G132: =IF(ROWS(G$17:G132)-1>E$9,"",ROWS(G$17:G132)-1) -> 115 | H132: 1491.43159 | I132: 301.9416827 | J132: 1189.489908 | K132: 86754.68953
A133: =IF(ROWS(A$17:A133)-1>B$9,"",ROWS(A$17:A133)-1) -> 116 | B133: 1258.212805 | C133: 738.5883766 | D133: 519.6244282 | E133: 153620.5585 | G133: =IF(ROWS(G$17:G133)-1>E$9,"",ROWS(G$17:G133)-1) -> 116 | H133: 1491.43159 | I133: 297.8577674 | J133: 1193.573823 | K133: 85561.11571
A134: =IF(ROWS(A$17:A134)-1>B$9,"",ROWS(A$17:A134)-1) -> 117 | B134: 1258.212805 | C134: 736.0985096 | D134: 522.1142953 | E134: 153098.4442 | G134: =IF(ROWS(G$17:G134)-1>E$9,"",ROWS(G$17:G134)-1) -> 117 | H134: 1491.43159 | I134: 293.7598306 | J134: 1197.67176 | K134: 84363.44395
A135: =IF(ROWS(A$17:A135)-1>B$9,"",ROWS(A$17:A135)-1) -> 118 | B135: 1258.212805 | C135: 733.5967119 | D135: 524.6160929 | E135: 152573.8281 | G135: =IF(ROWS(G$17:G135)-1>E$9,"",ROWS(G$17:G135)-1) -> 118 | H135: 1491.43159 | I135: 289.6478242 | J135: 1201.783766 | K135: 83161.66018
A136: =IF(ROWS(A$17:A136)-1>B$9,"",ROWS(A$17:A136)-1) -> 119 | B136: 1258.212805 | C136: 731.0829265 | D136: 527.1298784 | E136: 152046.6983 | G136: =IF(ROWS(G$17:G136)-1>E$9,"",ROWS(G$17:G136)-1) -> 119 | H136: 1491.43159 | I136: 285.5217 | J136: 1205.90989 | K136: 81955.75029
A137: =IF(ROWS(A$17:A137)-1>B$9,"",ROWS(A$17:A137)-1) -> 120 | B137: 1258.212805 | C137: 728.5570958 | D137: 529.655709 | E137: 151517.0425 | G137: =IF(ROWS(G$17:G137)-1>E$9,"",ROWS(G$17:G137)-1) -> 120 | H137: 1491.43159 | I137: 281.3814093 | J137: 1210.050181 | K137: 80745.70011
A138: =IF(ROWS(A$17:A138)-1>B$9,"",ROWS(A$17:A138)-1) -> 121 | B138: 1258.212805 | C138: 726.0191622 | D138: 532.1936427 | E138: 150984.8489 | G138: =IF(ROWS(G$17:G138)-1>E$9,"",ROWS(G$17:G138)-1) -> 121 | H138: 1491.43159 | I138: 277.2269037 | J138: 1214.204687 | K138: 79531.49542
A139: =IF(ROWS(A$17:A139)-1>B$9,"",ROWS(A$17:A139)-1) -> 122 | B139: 1258.212805 | C139: 723.4690677 | D139: 534.7437372 | E139: 150450.1052 | G139: =IF(ROWS(G$17:G139)-1>E$9,"",ROWS(G$17:G139)-1) -> 122 | H139: 1491.43159 | I139: 273.0581343 | J139: 1218.373456 | K139: 78313.12197
A140: =IF(ROWS(A$17:A140)-1>B$9,"",ROWS(A$17:A140)-1) -> 123 | B140: 1258.212805 | C140: 720.9067539 | D140: 537.3060509 | E140: 149912.7991 | G140: =IF(ROWS(G$17:G140)-1>E$9,"",ROWS(G$17:G140)-1) -> 123 | H140: 1491.43159 | I140: 268.8750521 | J140: 1222.556538 | K140: 77090.56543
A141: =IF(ROWS(A$17:A141)-1>B$9,"",ROWS(A$17:A141)-1) -> 124 | B141: 1258.212805 | C141: 718.3321624 | D141: 539.8806424 | E141: 149372.9185 | G141: =IF(ROWS(G$17:G141)-1>E$9,"",ROWS(G$17:G141)-1) -> 124 | H141: 1491.43159 | I141: 264.677608 | J141: 1226.753982 | K141: 75863.81145
A142: =IF(ROWS(A$17:A142)-1>B$9,"",ROWS(A$17:A142)-1) -> 125 | B142: 1258.212805 | C142: 715.7452343 | D142: 542.4675705 | E142: 148830.4509 | G142: =IF(ROWS(G$17:G142)-1>E$9,"",ROWS(G$17:G142)-1) -> 125 | H142: 1491.43159 | I142: 260.4657526 | J142: 1230.965838 | K142: 74632.84561
A143: =IF(ROWS(A$17:A143)-1>B$9,"",ROWS(A$17:A143)-1) -> 126 | B143: 1258.212805 | C143: 713.1459106 | D143: 545.0668943 | E143: 148285.384 | G143: =IF(ROWS(G$17:G143)-1>E$9,"",ROWS(G$17:G143)-1) -> 126 | H143: 1491.43159 | I143: 256.2394366 | J143: 1235.192154 | K143: 73397.65346
A144: =IF(ROWS(A$17:A144)-1>B$9,"",ROWS(A$17:A144)-1) -> 127 | B144: 1258.212805 | C144: 710.5341317 | D144: 547.6786731 | E144: 147737.7053 | G144: =IF(ROWS(G$17:G144)-1>E$9,"",ROWS(G$17:G144)-1) -> 127 | H144: 1491.43159 | I144: 251.9986102 | J144: 1239.43298 | K144: 72158.22048
A145: =IF(ROWS(A$17:A145)-1>B$9,"",ROWS(A$17:A145)-1) -> 128 | B145: 1258.212805 | C145: 707.9098381 | D145: 550.3029668 | E145: 147187.4024 | G145: =IF(ROWS(G$17:G145)-1>E$9,"",ROWS(G$17:G145)-1) -> 128 | H145: 1491.43159 | I145: 247.7432236 | J145: 1243.688367 | K145: 70914.53211
A146: =IF(ROWS(A$17:A146)-1>B$9,"",ROWS(A$17:A146)-1) -> 129 | B146: 1258.212805 | C146: 705.2729697 | D146: 552.9398352 | E146: 146634.4625 | G146: =IF(ROWS(G$17:G146)-1>E$9,"",ROWS(G$17:G146)-1) -> 129 | H146: =IF(G146="","",E$10) -> 1491.43159 | I146: =IF(G146="","",K145*E$7) -> 243.4732269 | J146: 1247.958363 | K146: 69666.57375
A147: =IF(ROWS(A$17:A147)-1>B$9,"",ROWS(A$17:A147)-1) -> 130 | B147: =IF(A147="","",B$10) -> 1258.212805 | C147: =IF(A147="","",E146*B$7) -> 702.6234663 | D147: =IF(A147="","",B147-C147) -> 555.5893385 | E147: =IF(A147="","",E146-D147) -> 146078.8732 | G147: =IF(ROWS(G$17:G147)-1>E$9,"",ROWS(G$17:G147)-1) -> 130 | H147: 1491.43159 | I147: 239.1885699 | J147: =IF(G147="","",H147-I147) -> 1252.243021 | K147: =IF(G147="","",K146-J147) -> 68414.33073
A148: =IF(ROWS(A$17:A148)-1>B$9,"",ROWS(A$17:A148)-1) -> 131 | B148: 1258.212805 | C148: 699.9612674 | D148: 558.2515375 | E148: 145520.6217 | G148: =IF(ROWS(G$17:G148)-1>E$9,"",ROWS(G$17:G148)-1) -> 131 | H148: 1491.43159 | I148: 234.8892022 | J148: 1256.542388 | K148: 67157.78834
A149: =IF(ROWS(A$17:A149)-1>B$9,"",ROWS(A$17:A149)-1) -> 132 | B149: 1258.212805 | C149: 697.2863121 | D149: 560.9264927 | E149: 144959.6952 | G149: =IF(ROWS(G$17:G149)-1>E$9,"",ROWS(G$17:G149)-1) -> 132 | H149: 1491.43159 | I149: 230.5750733 | J149: 1260.856517 | K149: 65896.93182
A150: =IF(ROWS(A$17:A150)-1>B$9,"",ROWS(A$17:A150)-1) -> 133 | B150: 1258.212805 | C150: 694.5985393 | D150: 563.6142655 | E150: 144396.0809 | G150: =IF(ROWS(G$17:G150)-1>E$9,"",ROWS(G$17:G150)-1) -> 133 | H150: 1491.43159 | I150: 226.2461326 | J150: 1265.185458 | K150: 64631.74636
A151: =IF(ROWS(A$17:A151)-1>B$9,"",ROWS(A$17:A151)-1) -> 134 | B151: 1258.212805 | C151: 691.8978876 | D151: 566.3149172 | E151: 143829.766 | G151: =IF(ROWS(G$17:G151)-1>E$9,"",ROWS(G$17:G151)-1) -> 134 | H151: 1491.43159 | I151: 221.9023292 | J151: 1269.529261 | K151: 63362.2171
A152: =IF(ROWS(A$17:A152)-1>B$9,"",ROWS(A$17:A152)-1) -> 135 | B152: 1258.212805 | C152: 689.1842953 | D152: 569.0285095 | E152: 143260.7375 | G152: =IF(ROWS(G$17:G152)-1>E$9,"",ROWS(G$17:G152)-1) -> 135 | H152: 1491.43159 | I152: 217.543612 | J152: 1273.887978 | K152: 62088.32912
A153: =IF(ROWS(A$17:A153)-1>B$9,"",ROWS(A$17:A153)-1) -> 136 | B153: 1258.212805 | C153: 686.4577004 | D153: 571.7551045 | E153: 142688.9824 | G153: =IF(ROWS(G$17:G153)-1>E$9,"",ROWS(G$17:G153)-1) -> 136 | H153: 1491.43159 | I153: 213.16993 | J153: 1278.26166 | K153: 60810.06746
A154: =IF(ROWS(A$17:A154)-1>B$9,"",ROWS(A$17:A154)-1) -> 137 | B154: 1258.212805 | C154: 683.7180405 | D154: 574.4947643 | E154: 142114.4876 | G154: =IF(ROWS(G$17:G154)-1>E$9,"",ROWS(G$17:G154)-1) -> 137 | H154: 1491.43159 | I154: 208.7812316 | J154: 1282.650359 | K154: 59527.4171
A155: =IF(ROWS(A$17:A155)-1>B$9,"",ROWS(A$17:A155)-1) -> 138 | B155: 1258.212805 | C155: 680.9652531 | D155: 577.2475518 | E155: 141537.2401 | G155: =IF(ROWS(G$17:G155)-1>E$9,"",ROWS(G$17:G155)-1) -> 138 | H155: 1491.43159 | I155: 204.3774654 | J155: 1287.054125 | K155: 58240.36298
A156: =IF(ROWS(A$17:A156)-1>B$9,"",ROWS(A$17:A156)-1) -> 139 | B156: 1258.212805 | C156: 678.1992752 | D156: 580.0135296 | E156: 140957.2265 | G156: =IF(ROWS(G$17:G156)-1>E$9,"",ROWS(G$17:G156)-1) -> 139 | H156: 1491.43159 | I156: 199.9585796 | J156: 1291.473011 | K156: 56948.88997
A157: =IF(ROWS(A$17:A157)-1>B$9,"",ROWS(A$17:A157)-1) -> 140 | B157: 1258.212805 | C157: 675.4200437 | D157: 582.7927611 | E157: 140374.4338 | G157: =IF(ROWS(G$17:G157)-1>E$9,"",ROWS(G$17:G157)-1) -> 140 | H157: 1491.43159 | I157: 195.5245222 | J157: 1295.907068 | K157: 55652.9829
A158: =IF(ROWS(A$17:A158)-1>B$9,"",ROWS(A$17:A158)-1) -> 141 | B158: 1258.212805 | C158: 672.6274951 | D158: 585.5853097 | E158: 139788.8484 | G158: =IF(ROWS(G$17:G158)-1>E$9,"",ROWS(G$17:G158)-1) -> 141 | H158: 1491.43159 | I158: 191.0752413 | J158: 1300.356349 | K158: 54352.62655
A159: =IF(ROWS(A$17:A159)-1>B$9,"",ROWS(A$17:A159)-1) -> 142 | B159: 1258.212805 | C159: 669.8215655 | D159: 588.3912394 | E159: 139200.4572 | G159: =IF(ROWS(G$17:G159)-1>E$9,"",ROWS(G$17:G159)-1) -> 142 | H159: 1491.43159 | I159: 186.6106845 | J159: 1304.820906 | K159: 53047.80565
A160: =IF(ROWS(A$17:A160)-1>B$9,"",ROWS(A$17:A160)-1) -> 143 | B160: 1258.212805 | C160: 667.0021908 | D160: 591.210614 | E160: 138609.2466 | G160: =IF(ROWS(G$17:G160)-1>E$9,"",ROWS(G$17:G160)-1) -> 143 | H160: 1491.43159 | I160: 182.1307994 | J160: 1309.300791 | K160: 51738.50485
A161: =IF(ROWS(A$17:A161)-1>B$9,"",ROWS(A$17:A161)-1) -> 144 | B161: 1258.212805 | C161: 664.1693066 | D161: 594.0434982 | E161: 138015.2031 | G161: =IF(ROWS(G$17:G161)-1>E$9,"",ROWS(G$17:G161)-1) -> 144 | H161: 1491.43159 | I161: 177.6355333 | J161: 1313.796057 | K161: 50424.7088
A162: =IF(ROWS(A$17:A162)-1>B$9,"",ROWS(A$17:A162)-1) -> 145 | B162: 1258.212805 | C162: 661.3228482 | D162: 596.8899567 | E162: 137418.3131 | G162: =IF(ROWS(G$17:G162)-1>E$9,"",ROWS(G$17:G162)-1) -> 145 | H162: 1491.43159 | I162: 173.1248335 | J162: 1318.306757 | K162: 49106.40204
A163: =IF(ROWS(A$17:A163)-1>B$9,"",ROWS(A$17:A163)-1) -> 146 | B163: 1258.212805 | C163: 658.4627505 | D163: 599.7500544 | E163: 136818.5631 | G163: =IF(ROWS(G$17:G163)-1>E$9,"",ROWS(G$17:G163)-1) -> 146 | H163: 1491.43159 | I163: 168.598647 | J163: 1322.832943 | K163: 47783.5691
A164: =IF(ROWS(A$17:A164)-1>B$9,"",ROWS(A$17:A164)-1) -> 147 | B164: 1258.212805 | C164: 655.5889481 | D164: 602.6238567 | E164: 136215.9392 | G164: =IF(ROWS(G$17:G164)-1>E$9,"",ROWS(G$17:G164)-1) -> 147 | H164: 1491.43159 | I164: 164.0569206 | J164: 1327.37467 | K164: 46456.19443
A165: =IF(ROWS(A$17:A165)-1>B$9,"",ROWS(A$17:A165)-1) -> 148 | B165: 1258.212805 | C165: 652.7013755 | D165: 605.5114294 | E165: 135610.4278 | G165: =IF(ROWS(G$17:G165)-1>E$9,"",ROWS(G$17:G165)-1) -> 148 | H165: 1491.43159 | I165: 159.4996009 | J165: 1331.93199 | K165: 45124.26244
A166: =IF(ROWS(A$17:A166)-1>B$9,"",ROWS(A$17:A166)-1) -> 149 | B166: 1258.212805 | C166: 649.7999665 | D166: 608.4128383 | E166: 135002.015 | G166: =IF(ROWS(G$17:G166)-1>E$9,"",ROWS(G$17:G166)-1) -> 149 | H166: 1491.43159 | I166: 154.9266344 | J166: 1336.504956 | K166: 43787.75748
A167: =IF(ROWS(A$17:A167)-1>B$9,"",ROWS(A$17:A167)-1) -> 150 | B167: 1258.212805 | C167: 646.884655 | D167: 611.3281498 | E167: 134390.6868 | G167: =IF(ROWS(G$17:G167)-1>E$9,"",ROWS(G$17:G167)-1) -> 150 | H167: 1491.43159 | I167: 150.3379674 | J167: 1341.093623 | K167: 42446.66386
A168: =IF(ROWS(A$17:A168)-1>B$9,"",ROWS(A$17:A168)-1) -> 151 | B168: 1258.212805 | C168: 643.9553743 | D168: 614.2574305 | E168: 133776.4294 | G168: =IF(ROWS(G$17:G168)-1>E$9,"",ROWS(G$17:G168)-1) -> 151 | H168: 1491.43159 | I168: 145.7335459 | J168: 1345.698044 | K168: 41100.96581
A169: =IF(ROWS(A$17:A169)-1>B$9,"",ROWS(A$17:A169)-1) -> 152 | B169: 1258.212805 | C169: 641.0120575 | D169: 617.2007474 | E169: 133159.2286 | G169: =IF(ROWS(G$17:G169)-1>E$9,"",ROWS(G$17:G169)-1) -> 152 | H169: 1491.43159 | I169: 141.113316 | J169: 1350.318274 | K169: 39750.64754
A170: =IF(ROWS(A$17:A170)-1>B$9,"",ROWS(A$17:A170)-1) -> 153 | B170: 1258.212805 | C170: 638.0546372 | D170: 620.1581676 | E170: 132539.0705 | G170: =IF(ROWS(G$17:G170)-1>E$9,"",ROWS(G$17:G170)-1) -> 153 | H170: 1491.43159 | I170: 136.4772232 | J170: 1354.954367 | K170: 38395.69317
A171: =IF(ROWS(A$17:A171)-1>B$9,"",ROWS(A$17:A171)-1) -> 154 | B171: 1258.212805 | C171: 635.083046 | D171: 623.1297589 | E171: 131915.9407 | G171: =IF(ROWS(G$17:G171)-1>E$9,"",ROWS(G$17:G171)-1) -> 154 | H171: 1491.43159 | I171: 131.8252132 | J171: 1359.606377 | K171: 37036.0868
A172: =IF(ROWS(A$17:A172)-1>B$9,"",ROWS(A$17:A172)-1) -> 155 | B172: 1258.212805 | C172: 632.0972159 | D172: 626.115589 | E172: 131289.8251 | G172: =IF(ROWS(G$17:G172)-1>E$9,"",ROWS(G$17:G172)-1) -> 155 | H172: 1491.43159 | I172: 127.1572313 | J172: 1364.274359 | K172: 35671.81244
A173: =IF(ROWS(A$17:A173)-1>B$9,"",ROWS(A$17:A173)-1) -> 156 | B173: 1258.212805 | C173: 629.0970787 | D173: 629.1157261 | E173: 130660.7094 | G173: =IF(ROWS(G$17:G173)-1>E$9,"",ROWS(G$17:G173)-1) -> 156 | H173: 1491.43159 | I173: 122.4732227 | J173: 1368.958368 | K173: 34302.85407
A174: =IF(ROWS(A$17:A174)-1>B$9,"",ROWS(A$17:A174)-1) -> 157 | B174: 1258.212805 | C174: 626.0825658 | D174: 632.130239 | E174: 130028.5792 | G174: =IF(ROWS(G$17:G174)-1>E$9,"",ROWS(G$17:G174)-1) -> 157 | H174: 1491.43159 | I174: 117.7731323 | J174: 1373.658458 | K174: 32929.19561
A175: =IF(ROWS(A$17:A175)-1>B$9,"",ROWS(A$17:A175)-1) -> 158 | B175: 1258.212805 | C175: 623.0536084 | D175: 635.1591964 | E175: 129393.42 | G175: =IF(ROWS(G$17:G175)-1>E$9,"",ROWS(G$17:G175)-1) -> 158 | H175: 1491.43159 | I175: 113.0569049 | J175: 1378.374685 | K175: 31550.82093
A176: =IF(ROWS(A$17:A176)-1>B$9,"",ROWS(A$17:A176)-1) -> 159 | B176: 1258.212805 | C176: 620.0101373 | D176: 638.2026675 | E176: 128755.2173 | G176: =IF(ROWS(G$17:G176)-1>E$9,"",ROWS(G$17:G176)-1) -> 159 | H176: 1491.43159 | I176: 108.3244852 | J176: 1383.107105 | K176: 30167.71382
A177: =IF(ROWS(A$17:A177)-1>B$9,"",ROWS(A$17:A177)-1) -> 160 | B177: 1258.212805 | C177: 616.9520828 | D177: 641.260722 | E177: 128113.9566 | G177: =IF(ROWS(G$17:G177)-1>E$9,"",ROWS(G$17:G177)-1) -> 160 | H177: 1491.43159 | I177: 103.5758174 | J177: 1387.855773 | K177: 28779.85805
A178: =IF(ROWS(A$17:A178)-1>B$9,"",ROWS(A$17:A178)-1) -> 161 | B178: 1258.212805 | C178: 613.8793752 | D178: 644.3334296 | E178: 127469.6231 | G178: =IF(ROWS(G$17:G178)-1>E$9,"",ROWS(G$17:G178)-1) -> 161 | H178: 1491.43159 | I178: 98.81084596 | J178: 1392.620744 | K178: 27387.2373
A179: =IF(ROWS(A$17:A179)-1>B$9,"",ROWS(A$17:A179)-1) -> 162 | B179: 1258.212805 | C179: 610.7919442 | D179: 647.4208606 | E179: 126822.2023 | G179: =IF(ROWS(G$17:G179)-1>E$9,"",ROWS(G$17:G179)-1) -> 162 | H179: 1491.43159 | I179: 94.02951474 | J179: 1397.402076 | K179: 25989.83523
A180: =IF(ROWS(A$17:A180)-1>B$9,"",ROWS(A$17:A180)-1) -> 163 | B180: 1258.212805 | C180: 607.6897192 | D180: 650.5230856 | E180: 126171.6792 | G180: =IF(ROWS(G$17:G180)-1>E$9,"",ROWS(G$17:G180)-1) -> 163 | H180: 1491.43159 | I180: 89.23176761 | J180: 1402.199823 | K180: 24587.6354
A181: =IF(ROWS(A$17:A181)-1>B$9,"",ROWS(A$17:A181)-1) -> 164 | B181: 1258.212805 | C181: 604.5726295 | D181: 653.6401754 | E181: 125518.039 | G181: =IF(ROWS(G$17:G181)-1>E$9,"",ROWS(G$17:G181)-1) -> 164 | H181: 1491.43159 | I181: 84.41754822 | J181: 1407.014042 | K181: 23180.62136
A182: =IF(ROWS(A$17:A182)-1>B$9,"",ROWS(A$17:A182)-1) -> 165 | B182: 1258.212805 | C182: 601.4406036 | D182: 656.7722012 | E182: 124861.2668 | G182: =IF(ROWS(G$17:G182)-1>E$9,"",ROWS(G$17:G182)-1) -> 165 | H182: 1491.43159 | I182: 79.58680001 | J182: 1411.84479 | K182: 21768.77657
A183: =IF(ROWS(A$17:A183)-1>B$9,"",ROWS(A$17:A183)-1) -> 166 | B183: 1258.212805 | C183: 598.2935702 | D183: 659.9192347 | E183: 124201.3476 | G183: =IF(ROWS(G$17:G183)-1>E$9,"",ROWS(G$17:G183)-1) -> 166 | H183: 1491.43159 | I183: 74.73946623 | J183: 1416.692124 | K183: 20352.08445
A184: =IF(ROWS(A$17:A184)-1>B$9,"",ROWS(A$17:A184)-1) -> 167 | B184: 1258.212805 | C184: 595.1314572 | D184: 663.0813477 | E184: 123538.2662 | G184: =IF(ROWS(G$17:G184)-1>E$9,"",ROWS(G$17:G184)-1) -> 167 | H184: 1491.43159 | I184: 69.87548994 | J184: 1421.5561 | K184: 18930.52835
A185: =IF(ROWS(A$17:A185)-1>B$9,"",ROWS(A$17:A185)-1) -> 168 | B185: 1258.212805 | C185: 591.9541924 | D185: 666.2586125 | E185: 122872.0076 | G185: =IF(ROWS(G$17:G185)-1>E$9,"",ROWS(G$17:G185)-1) -> 168 | H185: 1491.43159 | I185: 64.99481399 | J185: 1426.436776 | K185: 17504.09157
A186: =IF(ROWS(A$17:A186)-1>B$9,"",ROWS(A$17:A186)-1) -> 169 | B186: 1258.212805 | C186: 588.7617032 | D186: 669.4511017 | E186: 122202.5565 | G186: =IF(ROWS(G$17:G186)-1>E$9,"",ROWS(G$17:G186)-1) -> 169 | H186: 1491.43159 | I186: 60.09738106 | J186: 1431.334209 | K186: 16072.75736
A187: =IF(ROWS(A$17:A187)-1>B$9,"",ROWS(A$17:A187)-1) -> 170 | B187: 1258.212805 | C187: 585.5539167 | D187: 672.6588882 | E187: 121529.8976 | G187: =IF(ROWS(G$17:G187)-1>E$9,"",ROWS(G$17:G187)-1) -> 170 | H187: 1491.43159 | I187: 55.18313361 | J187: 1436.248457 | K187: 14636.5089
A188: =IF(ROWS(A$17:A188)-1>B$9,"",ROWS(A$17:A188)-1) -> 171 | B188: 1258.212805 | C188: 582.3307595 | D188: 675.8820454 | E188: 120854.0156 | G188: =IF(ROWS(G$17:G188)-1>E$9,"",ROWS(G$17:G188)-1) -> 171 | H188: 1491.43159 | I188: 50.25201391 | J188: 1441.179576 | K188: 13195.32933
A189: =IF(ROWS(A$17:A189)-1>B$9,"",ROWS(A$17:A189)-1) -> 172 | B189: 1258.212805 | C189: 579.092158 | D189: 679.1206468 | E189: 120174.8949 | G189: =IF(ROWS(G$17:G189)-1>E$9,"",ROWS(G$17:G189)-1) -> 172 | H189: 1491.43159 | I189: 45.30396403 | J189: 1446.127626 | K189: 11749.2017
A190: =IF(ROWS(A$17:A190)-1>B$9,"",ROWS(A$17:A190)-1) -> 173 | B190: 1258.212805 | C190: 575.8380382 | D190: 682.3747666 | E190: 119492.5202 | G190: =IF(ROWS(G$17:G190)-1>E$9,"",ROWS(G$17:G190)-1) -> 173 | H190: 1491.43159 | I190: 40.33892584 | J190: 1451.092665 | K190: 10298.10904
A191: =IF(ROWS(A$17:A191)-1>B$9,"",ROWS(A$17:A191)-1) -> 174 | B191: 1258.212805 | C191: 572.5683258 | D191: 685.644479 | E191: 118806.8757 | G191: =IF(ROWS(G$17:G191)-1>E$9,"",ROWS(G$17:G191)-1) -> 174 | H191: 1491.43159 | I191: 35.35684103 | J191: 1456.074749 | K191: 8842.034288
A192: =IF(ROWS(A$17:A192)-1>B$9,"",ROWS(A$17:A192)-1) -> 175 | B192: 1258.212805 | C192: 569.282946 | D192: 688.9298588 | E192: 118117.9458 | G192: =IF(ROWS(G$17:G192)-1>E$9,"",ROWS(G$17:G192)-1) -> 175 | H192: 1491.43159 | I192: 30.35765106 | J192: 1461.073939 | K192: 7380.960349
A193: =IF(ROWS(A$17:A193)-1>B$9,"",ROWS(A$17:A193)-1) -> 176 | B193: 1258.212805 | C193: 565.9818238 | D193: 692.2309811 | E193: 117425.7149 | G193: =IF(ROWS(G$17:G193)-1>E$9,"",ROWS(G$17:G193)-1) -> 176 | H193: 1491.43159 | I193: 25.3412972 | J193: 1466.090293 | K193: 5914.870056
A194: =IF(ROWS(A$17:A194)-1>B$9,"",ROWS(A$17:A194)-1) -> 177 | B194: 1258.212805 | C194: 562.6648837 | D194: 695.5479212 | E194: 116730.1669 | G194: =IF(ROWS(G$17:G194)-1>E$9,"",ROWS(G$17:G194)-1) -> 177 | H194: 1491.43159 | I194: 20.30772052 | J194: 1471.12387 | K194: 4443.746186
A195: =IF(ROWS(A$17:A195)-1>B$9,"",ROWS(A$17:A195)-1) -> 178 | B195: 1258.212805 | C195: 559.3320499 | D195: 698.880755 | E195: 116031.2862 | G195: =IF(ROWS(G$17:G195)-1>E$9,"",ROWS(G$17:G195)-1) -> 178 | H195: 1491.43159 | I195: 15.2568619 | J195: 1476.174728 | K195: 2967.571457
A196: =IF(ROWS(A$17:A196)-1>B$9,"",ROWS(A$17:A196)-1) -> 179 | B196: 1258.212805 | C196: 555.9832463 | D196: 702.2295586 | E196: 115329.0566 | G196: =IF(ROWS(G$17:G196)-1>E$9,"",ROWS(G$17:G196)-1) -> 179 | H196: 1491.43159 | I196: 10.188662 | J196: 1481.242928 | K196: 1486.328529
A197: =IF(ROWS(A$17:A197)-1>B$9,"",ROWS(A$17:A197)-1) -> 180 | B197: 1258.212805 | C197: 552.6183963 | D197: 705.5944085 | E197: 114623.4622 | G197: =IF(ROWS(G$17:G197)-1>E$9,"",ROWS(G$17:G197)-1) -> 180 | H197: 1491.43159 | I197: 5.103061283 | J197: 1486.328529 | K197: -1.705302566e-10
A198: =IF(ROWS(A$17:A198)-1>B$9,"",ROWS(A$17:A198)-1) -> 181 | B198: 1258.212805 | C198: 549.2374231 | D198: 708.9753818 | E198: 113914.4868 | G198: =IF(ROWS(G$17:G198)-1>E$9,"",ROWS(G$17:G198)-1) -> 
A199: =IF(ROWS(A$17:A199)-1>B$9,"",ROWS(A$17:A199)-1) -> 182 | B199: 1258.212805 | C199: 545.8402494 | D199: 712.3725555 | E199: 113202.1143 | G199: =IF(ROWS(G$17:G199)-1>E$9,"",ROWS(G$17:G199)-1) -> 
A200: =IF(ROWS(A$17:A200)-1>B$9,"",ROWS(A$17:A200)-1) -> 183 | B200: 1258.212805 | C200: 542.4267976 | D200: 715.7860073 | E200: 112486.3283 | G200: =IF(ROWS(G$17:G200)-1>E$9,"",ROWS(G$17:G200)-1) -> 
A201: =IF(ROWS(A$17:A201)-1>B$9,"",ROWS(A$17:A201)-1) -> 184 | B201: 1258.212805 | C201: 538.9969896 | D201: 719.2158152 | E201: 111767.1125 | G201: =IF(ROWS(G$17:G201)-1>E$9,"",ROWS(G$17:G201)-1) -> 
A202: =IF(ROWS(A$17:A202)-1>B$9,"",ROWS(A$17:A202)-1) -> 185 | B202: 1258.212805 | C202: 535.5507472 | D202: 722.6620577 | E202: 111044.4504 | G202: =IF(ROWS(G$17:G202)-1>E$9,"",ROWS(G$17:G202)-1) -> 
A203: =IF(ROWS(A$17:A203)-1>B$9,"",ROWS(A$17:A203)-1) -> 186 | B203: 1258.212805 | C203: 532.0879915 | D203: 726.1248134 | E203: 110318.3256 | G203: =IF(ROWS(G$17:G203)-1>E$9,"",ROWS(G$17:G203)-1) -> 
A204: =IF(ROWS(A$17:A204)-1>B$9,"",ROWS(A$17:A204)-1) -> 187 | B204: 1258.212805 | C204: 528.6086434 | D204: 729.6041614 | E204: 109588.7214 | G204: =IF(ROWS(G$17:G204)-1>E$9,"",ROWS(G$17:G204)-1) -> 
... 173 more rows

Sheet (645an)
A1: How to build Amortization Tables:
A2: http://www.youtube.com/view_play_list?p=1C040B9C3D6B319B
A4: Amount | B4: 200000 | D4: Amount | E4: 200000 | J4: How to build Amortization Tables:
A5: Annual Rate | B5: 0.0575 | D5: Annual Rate | E5: 0.0412 | J5: http://www.youtube.com/view_play_list?p=1C040B9C3D6B319B
A6: Periods Per Year | B6: 12 | D6: Periods Per Year | E6: 12
A7: Period Rate | B7: =B5/B6 -> 0.004791666667 | D7: Period Rate | E7: =E5/E6 -> 0.003433333333
A8: Years | B8: 25 | D8: Years | E8: 15
A9: Total Periods | B9: =B8*B6 -> 300 | D9: Total Periods | E9: =E8*E6 -> 180
A10: PMT | B10: =-PMT(B7,B9,B4) -> 1258.212805 | D10: PMT | E10: =-PMT(E7,E9,E4) -> 1491.43159
A11: Total Interest | B11: =SUM(C18:C377) -> 177463.8415 | D11: Total Interest | E11: =SUM(I18:I377) -> 68457.68627
A12: Total Interest | B12: =-CUMIPMT(B7,B9,B4,1,B9,0) -> 177463.8415 | D12: Total Interest | E12: =-CUMIPMT(E7,E9,E4,1,E9,0) -> 68457.68627
A16: Periods | B16: PMT | C16: Interest | D16: Principal | E16: Balance | G16: Periods | H16: PMT | I16: Interest | J16: Principal | K16: Balance
A17: =IF(ROWS(A$17:A17)-1>B$9,"",ROWS(A$17:A17)-1) -> 0 | E17: =B4 -> 200000 | G17: =IF(ROWS(G$17:G17)-1>E$9,"",ROWS(G$17:G17)-1) -> 0 | K17: =E4 -> 200000
A18: =IF(ROWS(A$17:A18)-1>B$9,"",ROWS(A$17:A18)-1) -> 1 | B18: =IF(A18="","",B$10) -> 1258.212805 | C18: =IF(A18="","",E17*B$7) -> 958.3333333 | D18: =IF(A18="","",B18-C18) -> 299.8794715 | E18: =IF(A18="","",E17-D18) -> 199700.1205 | G18: =IF(ROWS(G$17:G18)-1>E$9,"",ROWS(G$17:G18)-1) -> 1 | H18: =IF(G18="","",E$10) -> 1491.43159 | I18: =IF(G18="","",K17*E$7) -> 686.6666667 | J18: =IF(G18="","",H18-I18) -> 804.7649237 | K18: =IF(G18="","",K17-J18) -> 199195.2351
A19: =IF(ROWS(A$17:A19)-1>B$9,"",ROWS(A$17:A19)-1) -> 2 | B19: =IF(A19="","",B$10) -> 1258.212805 | C19: =IF(A19="","",E18*B$7) -> 956.8964109 | D19: =IF(A19="","",B19-C19) -> 301.316394 | E19: =IF(A19="","",E18-D19) -> 199398.8041 | G19: =IF(ROWS(G$17:G19)-1>E$9,"",ROWS(G$17:G19)-1) -> 2 | H19: 1491.43159 | I19: 683.9036404 | J19: =IF(G19="","",H19-I19) -> 807.5279499 | K19: =IF(G19="","",K18-J19) -> 198387.7071
A20: =IF(ROWS(A$17:A20)-1>B$9,"",ROWS(A$17:A20)-1) -> 3 | B20: 1258.212805 | C20: 955.4526031 | D20: 302.7602017 | E20: 199096.0439 | G20: =IF(ROWS(G$17:G20)-1>E$9,"",ROWS(G$17:G20)-1) -> 3 | H20: 1491.43159 | I20: 681.1311278 | J20: 810.3004626 | K20: 197577.4067
A21: =IF(ROWS(A$17:A21)-1>B$9,"",ROWS(A$17:A21)-1) -> 4 | B21: 1258.212805 | C21: 954.0018772 | D21: 304.2109277 | E21: 198791.833 | G21: =IF(ROWS(G$17:G21)-1>E$9,"",ROWS(G$17:G21)-1) -> 4 | H21: 1491.43159 | I21: 678.3490962 | J21: 813.0824942 | K21: 196764.3242
A22: =IF(ROWS(A$17:A22)-1>B$9,"",ROWS(A$17:A22)-1) -> 5 | B22: 1258.212805 | C22: 952.5441998 | D22: 305.668605 | E22: 198486.1644 | G22: =IF(ROWS(G$17:G22)-1>E$9,"",ROWS(G$17:G22)-1) -> 5 | H22: 1491.43159 | I22: 675.557513 | J22: 815.8740774 | K22: 195948.4501
A23: =IF(ROWS(A$17:A23)-1>B$9,"",ROWS(A$17:A23)-1) -> 6 | B23: 1258.212805 | C23: 951.0795378 | D23: 307.1332671 | E23: 198179.0311 | G23: =IF(ROWS(G$17:G23)-1>E$9,"",ROWS(G$17:G23)-1) -> 6 | H23: 1491.43159 | I23: 672.7563453 | J23: 818.6752451 | K23: 195129.7748
A24: =IF(ROWS(A$17:A24)-1>B$9,"",ROWS(A$17:A24)-1) -> 7 | B24: 1258.212805 | C24: 949.6078575 | D24: 308.6049473 | E24: 197870.4262 | G24: =IF(ROWS(G$17:G24)-1>E$9,"",ROWS(G$17:G24)-1) -> 7 | H24: 1491.43159 | I24: 669.9455603 | J24: 821.4860301 | K24: 194308.2888
A25: =IF(ROWS(A$17:A25)-1>B$9,"",ROWS(A$17:A25)-1) -> 8 | B25: 1258.212805 | C25: 948.1291255 | D25: 310.0836794 | E25: 197560.3425 | G25: =IF(ROWS(G$17:G25)-1>E$9,"",ROWS(G$17:G25)-1) -> 8 | H25: 1491.43159 | I25: 667.1251249 | J25: 824.3064654 | K25: 193483.9824
A26: =IF(ROWS(A$17:A26)-1>B$9,"",ROWS(A$17:A26)-1) -> 9 | B26: 1258.212805 | C26: 946.6433078 | D26: 311.569497 | E26: 197248.773 | G26: =IF(ROWS(G$17:G26)-1>E$9,"",ROWS(G$17:G26)-1) -> 9 | H26: 1491.43159 | I26: 664.2950061 | J26: 827.1365843 | K26: 192656.8458
A27: =IF(ROWS(A$17:A27)-1>B$9,"",ROWS(A$17:A27)-1) -> 10 | B27: 1258.212805 | C27: 945.1503707 | D27: 313.0624342 | E27: 196935.7106 | G27: =IF(ROWS(G$17:G27)-1>E$9,"",ROWS(G$17:G27)-1) -> 10 | H27: 1491.43159 | I27: 661.4551705 | J27: 829.9764199 | K27: 191826.8693
A28: =IF(ROWS(A$17:A28)-1>B$9,"",ROWS(A$17:A28)-1) -> 11 | B28: 1258.212805 | C28: 943.6502798 | D28: 314.562525 | E28: 196621.1481 | G28: =IF(ROWS(G$17:G28)-1>E$9,"",ROWS(G$17:G28)-1) -> 11 | H28: 1491.43159 | I28: 658.6055848 | J28: 832.8260056 | K28: 190994.0433
A29: =IF(ROWS(A$17:A29)-1>B$9,"",ROWS(A$17:A29)-1) -> 12 | B29: 1258.212805 | C29: 942.1430011 | D29: 316.0698038 | E29: 196305.0782 | G29: =IF(ROWS(G$17:G29)-1>E$9,"",ROWS(G$17:G29)-1) -> 12 | H29: 1491.43159 | I29: 655.7462155 | J29: 835.6853749 | K29: 190158.358
A30: =IF(ROWS(A$17:A30)-1>B$9,"",ROWS(A$17:A30)-1) -> 13 | B30: 1258.212805 | C30: 940.6284999 | D30: 317.5843049 | E30: 195987.4939 | G30: =IF(ROWS(G$17:G30)-1>E$9,"",ROWS(G$17:G30)-1) -> 13 | H30: 1491.43159 | I30: 652.877029 | J30: 838.5545613 | K30: 189319.8034
A31: =IF(ROWS(A$17:A31)-1>B$9,"",ROWS(A$17:A31)-1) -> 14 | B31: 1258.212805 | C31: 939.1067418 | D31: 319.106063 | E31: 195668.3879 | G31: =IF(ROWS(G$17:G31)-1>E$9,"",ROWS(G$17:G31)-1) -> 14 | H31: 1491.43159 | I31: 649.9979917 | J31: 841.4335987 | K31: 188478.3698
A32: =IF(ROWS(A$17:A32)-1>B$9,"",ROWS(A$17:A32)-1) -> 15 | B32: 1258.212805 | C32: 937.5776919 | D32: 320.6351129 | E32: 195347.7528 | G32: =IF(ROWS(G$17:G32)-1>E$9,"",ROWS(G$17:G32)-1) -> 15 | H32: 1491.43159 | I32: 647.1090697 | J32: 844.3225207 | K32: 187634.0473
A33: =IF(ROWS(A$17:A33)-1>B$9,"",ROWS(A$17:A33)-1) -> 16 | B33: 1258.212805 | C33: 936.0413153 | D33: 322.1714895 | E33: 195025.5813 | G33: =IF(ROWS(G$17:G33)-1>E$9,"",ROWS(G$17:G33)-1) -> 16 | H33: 1491.43159 | I33: 644.210229 | J33: 847.2213614 | K33: 186786.8259
A34: =IF(ROWS(A$17:A34)-1>B$9,"",ROWS(A$17:A34)-1) -> 17 | B34: 1258.212805 | C34: 934.4975769 | D34: 323.7152279 | E34: 194701.866 | G34: =IF(ROWS(G$17:G34)-1>E$9,"",ROWS(G$17:G34)-1) -> 17 | H34: 1491.43159 | I34: 641.3014357 | J34: 850.1301547 | K34: 185936.6958
A35: =IF(ROWS(A$17:A35)-1>B$9,"",ROWS(A$17:A35)-1) -> 18 | B35: 1258.212805 | C35: 932.9464415 | D35: 325.2663634 | E35: 194376.5997 | G35: =IF(ROWS(G$17:G35)-1>E$9,"",ROWS(G$17:G35)-1) -> 18 | H35: 1491.43159 | I35: 638.3826555 | J35: 853.0489349 | K35: 185083.6468
A36: =IF(ROWS(A$17:A36)-1>B$9,"",ROWS(A$17:A36)-1) -> 19 | B36: 1258.212805 | C36: 931.3878735 | D36: 326.8249314 | E36: 194049.7748 | G36: =IF(ROWS(G$17:G36)-1>E$9,"",ROWS(G$17:G36)-1) -> 19 | H36: 1491.43159 | I36: 635.4538541 | J36: 855.9777362 | K36: 184227.6691
A37: =IF(ROWS(A$17:A37)-1>B$9,"",ROWS(A$17:A37)-1) -> 20 | B37: 1258.212805 | C37: 929.8218374 | D37: 328.3909675 | E37: 193721.3838 | G37: =IF(ROWS(G$17:G37)-1>E$9,"",ROWS(G$17:G37)-1) -> 20 | H37: 1491.43159 | I37: 632.5149972 | J37: 858.9165931 | K37: 183368.7525
A38: =IF(ROWS(A$17:A38)-1>B$9,"",ROWS(A$17:A38)-1) -> 21 | B38: 1258.212805 | C38: 928.2482973 | D38: 329.9645075 | E38: 193391.4193 | G38: =IF(ROWS(G$17:G38)-1>E$9,"",ROWS(G$17:G38)-1) -> 21 | H38: 1491.43159 | I38: 629.5660503 | J38: 861.8655401 | K38: 182506.887
A39: =IF(ROWS(A$17:A39)-1>B$9,"",ROWS(A$17:A39)-1) -> 22 | B39: 1258.212805 | C39: 926.6672174 | D39: 331.5455875 | E39: 193059.8737 | G39: =IF(ROWS(G$17:G39)-1>E$9,"",ROWS(G$17:G39)-1) -> 22 | H39: 1491.43159 | I39: 626.6069786 | J39: 864.8246118 | K39: 181642.0624
A40: =IF(ROWS(A$17:A40)-1>B$9,"",ROWS(A$17:A40)-1) -> 23 | B40: 1258.212805 | C40: 925.0785614 | D40: 333.1342434 | E40: 192726.7394 | G40: =IF(ROWS(G$17:G40)-1>E$9,"",ROWS(G$17:G40)-1) -> 23 | H40: 1491.43159 | I40: 623.6377474 | J40: 867.793843 | K40: 180774.2685
A41: =IF(ROWS(A$17:A41)-1>B$9,"",ROWS(A$17:A41)-1) -> 24 | B41: 1258.212805 | C41: 923.4822932 | D41: 334.7305117 | E41: 192392.0089 | G41: =IF(ROWS(G$17:G41)-1>E$9,"",ROWS(G$17:G41)-1) -> 24 | H41: 1491.43159 | I41: 620.6583219 | J41: 870.7732685 | K41: 179903.4952
A42: =IF(ROWS(A$17:A42)-1>B$9,"",ROWS(A$17:A42)-1) -> 25 | B42: 1258.212805 | C42: 921.8783762 | D42: 336.3344287 | E42: 192055.6745 | G42: =IF(ROWS(G$17:G42)-1>E$9,"",ROWS(G$17:G42)-1) -> 25 | H42: 1491.43159 | I42: 617.668667 | J42: 873.7629234 | K42: 179029.7323
A43: =IF(ROWS(A$17:A43)-1>B$9,"",ROWS(A$17:A43)-1) -> 26 | B43: 1258.212805 | C43: 920.2667737 | D43: 337.9460312 | E43: 191717.7285 | G43: =IF(ROWS(G$17:G43)-1>E$9,"",ROWS(G$17:G43)-1) -> 26 | H43: 1491.43159 | I43: 614.6687476 | J43: 876.7628427 | K43: 178152.9695
A44: =IF(ROWS(A$17:A44)-1>B$9,"",ROWS(A$17:A44)-1) -> 27 | B44: 1258.212805 | C44: 918.6474489 | D44: 339.5653559 | E44: 191378.1631 | G44: =IF(ROWS(G$17:G44)-1>E$9,"",ROWS(G$17:G44)-1) -> 27 | H44: 1491.43159 | I44: 611.6585285 | J44: 879.7730618 | K44: 177273.1964
A45: =IF(ROWS(A$17:A45)-1>B$9,"",ROWS(A$17:A45)-1) -> 28 | B45: 1258.212805 | C45: 917.020365 | D45: 341.1924399 | E45: 191036.9707 | G45: =IF(ROWS(G$17:G45)-1>E$9,"",ROWS(G$17:G45)-1) -> 28 | H45: 1491.43159 | I45: 608.6379744 | J45: 882.793616 | K45: 176390.4028
A46: =IF(ROWS(A$17:A46)-1>B$9,"",ROWS(A$17:A46)-1) -> 29 | B46: 1258.212805 | C46: 915.3854845 | D46: 342.8273203 | E46: 190694.1434 | G46: =IF(ROWS(G$17:G46)-1>E$9,"",ROWS(G$17:G46)-1) -> 29 | H46: 1491.43159 | I46: 605.6070496 | J46: 885.8245408 | K46: 175504.5783
A47: =IF(ROWS(A$17:A47)-1>B$9,"",ROWS(A$17:A47)-1) -> 30 | B47: 1258.212805 | C47: 913.7427703 | D47: 344.4700346 | E47: 190349.6733 | G47: =IF(ROWS(G$17:G47)-1>E$9,"",ROWS(G$17:G47)-1) -> 30 | H47: 1491.43159 | I47: 602.5657187 | J47: 888.8658717 | K47: 174615.7124
A48: =IF(ROWS(A$17:A48)-1>B$9,"",ROWS(A$17:A48)-1) -> 31 | B48: 1258.212805 | C48: 912.0921847 | D48: 346.1206202 | E48: 190003.5527 | G48: =IF(ROWS(G$17:G48)-1>E$9,"",ROWS(G$17:G48)-1) -> 31 | H48: 1491.43159 | I48: 599.5139459 | J48: 891.9176445 | K48: 173723.7947
A49: =IF(ROWS(A$17:A49)-1>B$9,"",ROWS(A$17:A49)-1) -> 32 | B49: 1258.212805 | C49: 910.43369 | D49: 347.7791148 | E49: 189655.7736 | G49: =IF(ROWS(G$17:G49)-1>E$9,"",ROWS(G$17:G49)-1) -> 32 | H49: 1491.43159 | I49: 596.4516953 | J49: 894.9798951 | K49: 172828.8148
A50: =IF(ROWS(A$17:A50)-1>B$9,"",ROWS(A$17:A50)-1) -> 33 | B50: 1258.212805 | C50: 908.7672485 | D50: 349.4455564 | E50: 189306.328 | G50: =IF(ROWS(G$17:G50)-1>E$9,"",ROWS(G$17:G50)-1) -> 33 | H50: 1491.43159 | I50: 593.378931 | J50: 898.0526594 | K50: 171930.7622
A51: =IF(ROWS(A$17:A51)-1>B$9,"",ROWS(A$17:A51)-1) -> 34 | B51: 1258.212805 | C51: 907.0928218 | D51: 351.119983 | E51: 188955.2081 | G51: =IF(ROWS(G$17:G51)-1>E$9,"",ROWS(G$17:G51)-1) -> 34 | H51: 1491.43159 | I51: 590.2956168 | J51: 901.1359735 | K51: 171029.6262
A52: =IF(ROWS(A$17:A52)-1>B$9,"",ROWS(A$17:A52)-1) -> 35 | B52: 1258.212805 | C52: 905.4103719 | D52: 352.8024329 | E52: 188602.4056 | G52: =IF(ROWS(G$17:G52)-1>E$9,"",ROWS(G$17:G52)-1) -> 35 | H52: 1491.43159 | I52: 587.2017167 | J52: 904.2298737 | K52: 170125.3963
A53: =IF(ROWS(A$17:A53)-1>B$9,"",ROWS(A$17:A53)-1) -> 36 | B53: 1258.212805 | C53: 903.7198603 | D53: 354.4929446 | E53: 188247.9127 | G53: =IF(ROWS(G$17:G53)-1>E$9,"",ROWS(G$17:G53)-1) -> 36 | H53: 1491.43159 | I53: 584.0971941 | J53: 907.3343963 | K53: 169218.0619
A54: =IF(ROWS(A$17:A54)-1>B$9,"",ROWS(A$17:A54)-1) -> 37 | B54: 1258.212805 | C54: 902.0212482 | D54: 356.1915566 | E54: 187891.7211 | G54: =IF(ROWS(G$17:G54)-1>E$9,"",ROWS(G$17:G54)-1) -> 37 | H54: 1491.43159 | I54: 580.9820127 | J54: 910.4495777 | K54: 168307.6124
A55: =IF(ROWS(A$17:A55)-1>B$9,"",ROWS(A$17:A55)-1) -> 38 | B55: 1258.212805 | C55: 900.314497 | D55: 357.8983078 | E55: 187533.8228 | G55: =IF(ROWS(G$17:G55)-1>E$9,"",ROWS(G$17:G55)-1) -> 38 | H55: 1491.43159 | I55: 577.8561358 | J55: 913.5754546 | K55: 167394.0369
A56: =IF(ROWS(A$17:A56)-1>B$9,"",ROWS(A$17:A56)-1) -> 39 | B56: 1258.212805 | C56: 898.5995676 | D56: 359.6132372 | E56: 187174.2096 | G56: =IF(ROWS(G$17:G56)-1>E$9,"",ROWS(G$17:G56)-1) -> 39 | H56: 1491.43159 | I56: 574.7195267 | J56: 916.7120636 | K56: 166477.3248
A57: =IF(ROWS(A$17:A57)-1>B$9,"",ROWS(A$17:A57)-1) -> 40 | B57: 1258.212805 | C57: 896.8764209 | D57: 361.336384 | E57: 186812.8732 | G57: =IF(ROWS(G$17:G57)-1>E$9,"",ROWS(G$17:G57)-1) -> 40 | H57: 1491.43159 | I57: 571.5721486 | J57: 919.8594417 | K57: 165557.4654
A58: =IF(ROWS(A$17:A58)-1>B$9,"",ROWS(A$17:A58)-1) -> 41 | B58: 1258.212805 | C58: 895.1450174 | D58: 363.0677875 | E58: 186449.8054 | G58: =IF(ROWS(G$17:G58)-1>E$9,"",ROWS(G$17:G58)-1) -> 41 | H58: 1491.43159 | I58: 568.4139646 | J58: 923.0176258 | K58: 164634.4478
A59: =IF(ROWS(A$17:A59)-1>B$9,"",ROWS(A$17:A59)-1) -> 42 | B59: 1258.212805 | C59: 893.4053175 | D59: 364.8074873 | E59: 186084.9979 | G59: =IF(ROWS(G$17:G59)-1>E$9,"",ROWS(G$17:G59)-1) -> 42 | H59: 1491.43159 | I59: 565.2449374 | J59: 926.186653 | K59: 163708.2611
A60: =IF(ROWS(A$17:A60)-1>B$9,"",ROWS(A$17:A60)-1) -> 43 | B60: 1258.212805 | C60: 891.6572817 | D60: 366.5555232 | E60: 185718.4424 | G60: =IF(ROWS(G$17:G60)-1>E$9,"",ROWS(G$17:G60)-1) -> 43 | H60: 1491.43159 | I60: 562.0650299 | J60: 929.3665605 | K60: 162778.8946
A61: =IF(ROWS(A$17:A61)-1>B$9,"",ROWS(A$17:A61)-1) -> 44 | B61: 1258.212805 | C61: 889.9008698 | D61: 368.3119351 | E61: 185350.1305 | G61: =IF(ROWS(G$17:G61)-1>E$9,"",ROWS(G$17:G61)-1) -> 44 | H61: 1491.43159 | I61: 558.8742047 | J61: 932.5573857 | K61: 161846.3372
A62: =IF(ROWS(A$17:A62)-1>B$9,"",ROWS(A$17:A62)-1) -> 45 | B62: 1258.212805 | C62: 888.1360418 | D62: 370.0767631 | E62: 184980.0537 | G62: =IF(ROWS(G$17:G62)-1>E$9,"",ROWS(G$17:G62)-1) -> 45 | H62: 1491.43159 | I62: 555.6724243 | J62: 935.759166 | K62: 160910.578
A63: =IF(ROWS(A$17:A63)-1>B$9,"",ROWS(A$17:A63)-1) -> 46 | B63: 1258.212805 | C63: 886.3627573 | D63: 371.8500476 | E63: 184608.2036 | G63: =IF(ROWS(G$17:G63)-1>E$9,"",ROWS(G$17:G63)-1) -> 46 | H63: 1491.43159 | I63: 552.4596512 | J63: 938.9719392 | K63: 159971.6061
A64: =IF(ROWS(A$17:A64)-1>B$9,"",ROWS(A$17:A64)-1) -> 47 | B64: 1258.212805 | C64: 884.5809758 | D64: 373.6318291 | E64: 184234.5718 | G64: =IF(ROWS(G$17:G64)-1>E$9,"",ROWS(G$17:G64)-1) -> 47 | H64: 1491.43159 | I64: 549.2358475 | J64: 942.1957428 | K64: 159029.4103
A65: =IF(ROWS(A$17:A65)-1>B$9,"",ROWS(A$17:A65)-1) -> 48 | B65: 1258.212805 | C65: 882.7906566 | D65: 375.4221482 | E65: 183859.1497 | G65: =IF(ROWS(G$17:G65)-1>E$9,"",ROWS(G$17:G65)-1) -> 48 | H65: 1491.43159 | I65: 546.0009755 | J65: 945.4306149 | K65: 158083.9797
A66: =IF(ROWS(A$17:A66)-1>B$9,"",ROWS(A$17:A66)-1) -> 49 | B66: 1258.212805 | C66: 880.9917588 | D66: 377.221046 | E66: 183481.9286 | G66: =IF(ROWS(G$17:G66)-1>E$9,"",ROWS(G$17:G66)-1) -> 49 | H66: 1491.43159 | I66: 542.754997 | J66: 948.6765933 | K66: 157135.3031
A67: =IF(ROWS(A$17:A67)-1>B$9,"",ROWS(A$17:A67)-1) -> 50 | B67: 1258.212805 | C67: 879.1842413 | D67: 379.0285635 | E67: 183102.9001 | G67: =IF(ROWS(G$17:G67)-1>E$9,"",ROWS(G$17:G67)-1) -> 50 | H67: 1491.43159 | I67: 539.4978741 | J67: 951.9337163 | K67: 156183.3694
A68: =IF(ROWS(A$17:A68)-1>B$9,"",ROWS(A$17:A68)-1) -> 51 | B68: 1258.212805 | C68: 877.3680628 | D68: 380.8447421 | E68: 182722.0553 | G68: =IF(ROWS(G$17:G68)-1>E$9,"",ROWS(G$17:G68)-1) -> 51 | H68: 1491.43159 | I68: 536.2295683 | J68: 955.2020221 | K68: 155228.1674
A69: =IF(ROWS(A$17:A69)-1>B$9,"",ROWS(A$17:A69)-1) -> 52 | B69: 1258.212805 | C69: 875.5431817 | D69: 382.6696231 | E69: 182339.3857 | G69: =IF(ROWS(G$17:G69)-1>E$9,"",ROWS(G$17:G69)-1) -> 52 | H69: 1491.43159 | I69: 532.9500414 | J69: 958.481549 | K69: 154269.6858
A70: =IF(ROWS(A$17:A70)-1>B$9,"",ROWS(A$17:A70)-1) -> 53 | B70: 1258.212805 | C70: 873.7095564 | D70: 384.5032484 | E70: 181954.8824 | G70: =IF(ROWS(G$17:G70)-1>E$9,"",ROWS(G$17:G70)-1) -> 53 | H70: 1491.43159 | I70: 529.6592547 | J70: 961.7723357 | K70: 153307.9135
A71: =IF(ROWS(A$17:A71)-1>B$9,"",ROWS(A$17:A71)-1) -> 54 | B71: 1258.212805 | C71: 871.867145 | D71: 386.3456598 | E71: 181568.5368 | G71: =IF(ROWS(G$17:G71)-1>E$9,"",ROWS(G$17:G71)-1) -> 54 | H71: 1491.43159 | I71: 526.3571697 | J71: 965.0744207 | K71: 152342.8391
A72: =IF(ROWS(A$17:A72)-1>B$9,"",ROWS(A$17:A72)-1) -> 55 | B72: 1258.212805 | C72: 870.0159054 | D72: 388.1968994 | E72: 181180.3399 | G72: =IF(ROWS(G$17:G72)-1>E$9,"",ROWS(G$17:G72)-1) -> 55 | H72: 1491.43159 | I72: 523.0437475 | J72: 968.3878429 | K72: 151374.4512
A73: =IF(ROWS(A$17:A73)-1>B$9,"",ROWS(A$17:A73)-1) -> 56 | B73: 1258.212805 | C73: 868.1557953 | D73: 390.0570096 | E73: 180790.2829 | G73: =IF(ROWS(G$17:G73)-1>E$9,"",ROWS(G$17:G73)-1) -> 56 | H73: 1491.43159 | I73: 519.7189493 | J73: 971.7126411 | K73: 150402.7386
A74: =IF(ROWS(A$17:A74)-1>B$9,"",ROWS(A$17:A74)-1) -> 57 | B74: 1258.212805 | C74: 866.2867721 | D74: 391.9260327 | E74: 180398.3568 | G74: =IF(ROWS(G$17:G74)-1>E$9,"",ROWS(G$17:G74)-1) -> 57 | H74: 1491.43159 | I74: 516.3827359 | J74: 975.0488545 | K74: 149427.6897
A75: =IF(ROWS(A$17:A75)-1>B$9,"",ROWS(A$17:A75)-1) -> 58 | B75: 1258.212805 | C75: 864.4087932 | D75: 393.8040116 | E75: 180004.5528 | G75: =IF(ROWS(G$17:G75)-1>E$9,"",ROWS(G$17:G75)-1) -> 58 | H75: 1491.43159 | I75: 513.0350681 | J75: 978.3965223 | K75: 148449.2932
A76: =IF(ROWS(A$17:A76)-1>B$9,"",ROWS(A$17:A76)-1) -> 59 | B76: 1258.212805 | C76: 862.5218156 | D76: 395.6909892 | E76: 179608.8618 | G76: =IF(ROWS(G$17:G76)-1>E$9,"",ROWS(G$17:G76)-1) -> 59 | H76: 1491.43159 | I76: 509.6759067 | J76: 981.7556836 | K76: 147467.5375
A77: =IF(ROWS(A$17:A77)-1>B$9,"",ROWS(A$17:A77)-1) -> 60 | B77: 1258.212805 | C77: 860.6257963 | D77: 397.5870085 | E77: 179211.2748 | G77: =IF(ROWS(G$17:G77)-1>E$9,"",ROWS(G$17:G77)-1) -> 60 | H77: 1491.43159 | I77: 506.3052122 | J77: 985.1263782 | K77: 146482.4112
A78: =IF(ROWS(A$17:A78)-1>B$9,"",ROWS(A$17:A78)-1) -> 61 | B78: 1258.212805 | C78: 858.7206919 | D78: 399.4921129 | E78: 178811.7827 | G78: =IF(ROWS(G$17:G78)-1>E$9,"",ROWS(G$17:G78)-1) -> 61 | H78: 1491.43159 | I78: 502.922945 | J78: 988.5086454 | K78: 145493.9025
A79: =IF(ROWS(A$17:A79)-1>B$9,"",ROWS(A$17:A79)-1) -> 62 | B79: 1258.212805 | C79: 856.8064589 | D79: 401.406346 | E79: 178410.3764 | G79: =IF(ROWS(G$17:G79)-1>E$9,"",ROWS(G$17:G79)-1) -> 62 | H79: 1491.43159 | I79: 499.5290653 | J79: 991.9025251 | K79: 144502
A80: =IF(ROWS(A$17:A80)-1>B$9,"",ROWS(A$17:A80)-1) -> 63 | B80: 1258.212805 | C80: 854.8830535 | D80: 403.3297514 | E80: 178007.0466 | G80: =IF(ROWS(G$17:G80)-1>E$9,"",ROWS(G$17:G80)-1) -> 63 | H80: 1491.43159 | I80: 496.1235333 | J80: 995.3080571 | K80: 143506.6919
A81: =IF(ROWS(A$17:A81)-1>B$9,"",ROWS(A$17:A81)-1) -> 64 | B81: 1258.212805 | C81: 852.9504317 | D81: 405.2623731 | E81: 177601.7842 | G81: =IF(ROWS(G$17:G81)-1>E$9,"",ROWS(G$17:G81)-1) -> 64 | H81: 1491.43159 | I81: 492.706309 | J81: 998.7252814 | K81: 142507.9666
A82: =IF(ROWS(A$17:A82)-1>B$9,"",ROWS(A$17:A82)-1) -> 65 | B82: 1258.212805 | C82: 851.0085495 | D82: 407.2042553 | E82: 177194.58 | G82: =IF(ROWS(G$17:G82)-1>E$9,"",ROWS(G$17:G82)-1) -> 65 | H82: =IF(G82="","",E$10) -> 1491.43159 | I82: =IF(G82="","",K81*E$7) -> 489.2773522 | J82: 1002.154238 | K82: 141505.8124
A83: =IF(ROWS(A$17:A83)-1>B$9,"",ROWS(A$17:A83)-1) -> 66 | B83: =IF(A83="","",B$10) -> 1258.212805 | C83: =IF(A83="","",E82*B$7) -> 849.0573625 | D83: =IF(A83="","",B83-C83) -> 409.1554424 | E83: =IF(A83="","",E82-D83) -> 176785.4246 | G83: =IF(ROWS(G$17:G83)-1>E$9,"",ROWS(G$17:G83)-1) -> 66 | H83: 1491.43159 | I83: 485.8366226 | J83: =IF(G83="","",H83-I83) -> 1005.594968 | K83: =IF(G83="","",K82-J83) -> 140500.2174
A84: =IF(ROWS(A$17:A84)-1>B$9,"",ROWS(A$17:A84)-1) -> 67 | B84: 1258.212805 | C84: 847.096826 | D84: 411.1159789 | E84: 176374.3086 | G84: =IF(ROWS(G$17:G84)-1>E$9,"",ROWS(G$17:G84)-1) -> 67 | H84: 1491.43159 | I84: 482.3840799 | J84: 1009.04751 | K84: 139491.1699
A85: =IF(ROWS(A$17:A85)-1>B$9,"",ROWS(A$17:A85)-1) -> 68 | B85: 1258.212805 | C85: 845.1268952 | D85: 413.0859096 | E85: 175961.2227 | G85: =IF(ROWS(G$17:G85)-1>E$9,"",ROWS(G$17:G85)-1) -> 68 | H85: 1491.43159 | I85: 478.9196834 | J85: 1012.511907 | K85: 138478.658
A86: =IF(ROWS(A$17:A86)-1>B$9,"",ROWS(A$17:A86)-1) -> 69 | B86: 1258.212805 | C86: 843.1475253 | D86: 415.0652796 | E86: 175546.1574 | G86: =IF(ROWS(G$17:G86)-1>E$9,"",ROWS(G$17:G86)-1) -> 69 | H86: 1491.43159 | I86: 475.4433926 | J86: 1015.988198 | K86: 137462.6698
A87: =IF(ROWS(A$17:A87)-1>B$9,"",ROWS(A$17:A87)-1) -> 70 | B87: 1258.212805 | C87: 841.1586708 | D87: 417.054134 | E87: 175129.1032 | G87: =IF(ROWS(G$17:G87)-1>E$9,"",ROWS(G$17:G87)-1) -> 70 | H87: 1491.43159 | I87: 471.9551664 | J87: 1019.476424 | K87: 136443.1934
A88: =IF(ROWS(A$17:A88)-1>B$9,"",ROWS(A$17:A88)-1) -> 71 | B88: 1258.212805 | C88: 839.1602864 | D88: 419.0525184 | E88: 174710.0507 | G88: =IF(ROWS(G$17:G88)-1>E$9,"",ROWS(G$17:G88)-1) -> 71 | H88: 1491.43159 | I88: 468.454964 | J88: 1022.976626 | K88: 135420.2168
A89: =IF(ROWS(A$17:A89)-1>B$9,"",ROWS(A$17:A89)-1) -> 72 | B89: 1258.212805 | C89: 837.1523264 | D89: 421.0604784 | E89: 174288.9903 | G89: =IF(ROWS(G$17:G89)-1>E$9,"",ROWS(G$17:G89)-1) -> 72 | H89: 1491.43159 | I89: 464.9427443 | J89: 1026.488846 | K89: 134393.7279
A90: =IF(ROWS(A$17:A90)-1>B$9,"",ROWS(A$17:A90)-1) -> 73 | B90: 1258.212805 | C90: 835.134745 | D90: 423.0780599 | E90: 173865.9122 | G90: =IF(ROWS(G$17:G90)-1>E$9,"",ROWS(G$17:G90)-1) -> 73 | H90: 1491.43159 | I90: 461.4184659 | J90: 1030.013124 | K90: 133363.7148
A91: =IF(ROWS(A$17:A91)-1>B$9,"",ROWS(A$17:A91)-1) -> 74 | B91: 1258.212805 | C91: 833.1074959 | D91: 425.1053089 | E91: 173440.8069 | G91: =IF(ROWS(G$17:G91)-1>E$9,"",ROWS(G$17:G91)-1) -> 74 | H91: 1491.43159 | I91: 457.8820875 | J91: 1033.549503 | K91: 132330.1653
A92: =IF(ROWS(A$17:A92)-1>B$9,"",ROWS(A$17:A92)-1) -> 75 | B92: 1258.212805 | C92: 831.070533 | D92: 427.1422719 | E92: 173013.6646 | G92: =IF(ROWS(G$17:G92)-1>E$9,"",ROWS(G$17:G92)-1) -> 75 | H92: 1491.43159 | I92: 454.3335675 | J92: 1037.098023 | K92: 131293.0673
A93: =IF(ROWS(A$17:A93)-1>B$9,"",ROWS(A$17:A93)-1) -> 76 | B93: 1258.212805 | C93: 829.0238096 | D93: 429.1889952 | E93: 172584.4756 | G93: =IF(ROWS(G$17:G93)-1>E$9,"",ROWS(G$17:G93)-1) -> 76 | H93: 1491.43159 | I93: 450.7728643 | J93: 1040.658726 | K93: 130252.4086
A94: =IF(ROWS(A$17:A94)-1>B$9,"",ROWS(A$17:A94)-1) -> 77 | B94: 1258.212805 | C94: 826.967279 | D94: 431.2455258 | E94: 172153.2301 | G94: =IF(ROWS(G$17:G94)-1>E$9,"",ROWS(G$17:G94)-1) -> 77 | H94: 1491.43159 | I94: 447.199936 | J94: 1044.231654 | K94: 129208.1769
A95: =IF(ROWS(A$17:A95)-1>B$9,"",ROWS(A$17:A95)-1) -> 78 | B95: 1258.212805 | C95: 824.9008942 | D95: 433.3119107 | E95: 171719.9182 | G95: =IF(ROWS(G$17:G95)-1>E$9,"",ROWS(G$17:G95)-1) -> 78 | H95: 1491.43159 | I95: 443.6147407 | J95: 1047.81685 | K95: 128160.3601
A96: =IF(ROWS(A$17:A96)-1>B$9,"",ROWS(A$17:A96)-1) -> 79 | B96: 1258.212805 | C96: 822.8246079 | D96: 435.3881969 | E96: 171284.53 | G96: =IF(ROWS(G$17:G96)-1>E$9,"",ROWS(G$17:G96)-1) -> 79 | H96: 1491.43159 | I96: 440.0172362 | J96: 1051.414354 | K96: 127108.9457
A97: =IF(ROWS(A$17:A97)-1>B$9,"",ROWS(A$17:A97)-1) -> 80 | B97: 1258.212805 | C97: 820.7383728 | D97: 437.474432 | E97: 170847.0556 | G97: =IF(ROWS(G$17:G97)-1>E$9,"",ROWS(G$17:G97)-1) -> 80 | H97: 1491.43159 | I97: 436.4073802 | J97: 1055.02421 | K97: 126053.9215
A98: =IF(ROWS(A$17:A98)-1>B$9,"",ROWS(A$17:A98)-1) -> 81 | B98: 1258.212805 | C98: 818.6421412 | D98: 439.5706637 | E98: 170407.4849 | G98: =IF(ROWS(G$17:G98)-1>E$9,"",ROWS(G$17:G98)-1) -> 81 | H98: 1491.43159 | I98: 432.7851304 | J98: 1058.64646 | K98: 124995.275
A99: =IF(ROWS(A$17:A99)-1>B$9,"",ROWS(A$17:A99)-1) -> 82 | B99: 1258.212805 | C99: 816.5358651 | D99: 441.6769398 | E99: 169965.8079 | G99: =IF(ROWS(G$17:G99)-1>E$9,"",ROWS(G$17:G99)-1) -> 82 | H99: 1491.43159 | I99: 429.1504443 | J99: 1062.281146 | K99: 123932.9939
A100: =IF(ROWS(A$17:A100)-1>B$9,"",ROWS(A$17:A100)-1) -> 83 | B100: 1258.212805 | C100: 814.4194964 | D100: 443.7933084 | E100: 169522.0146 | G100: =IF(ROWS(G$17:G100)-1>E$9,"",ROWS(G$17:G100)-1) -> 83 | H100: 1491.43159 | I100: 425.503279 | J100: 1065.928311 | K100: 122867.0656
A101: =IF(ROWS(A$17:A101)-1>B$9,"",ROWS(A$17:A101)-1) -> 84 | B101: 1258.212805 | C101: 812.2929868 | D101: 445.919818 | E101: 169076.0948 | G101: =IF(ROWS(G$17:G101)-1>E$9,"",ROWS(G$17:G101)-1) -> 84 | H101: 1491.43159 | I101: 421.8435918 | J101: 1069.587999 | K101: 121797.4776
A102: =IF(ROWS(A$17:A102)-1>B$9,"",ROWS(A$17:A102)-1) -> 85 | B102: 1258.212805 | C102: 810.1562877 | D102: 448.0565172 | E102: 168628.0383 | G102: =IF(ROWS(G$17:G102)-1>E$9,"",ROWS(G$17:G102)-1) -> 85 | H102: 1491.43159 | I102: 418.1713397 | J102: 1073.260251 | K102: 120724.2173
A103: =IF(ROWS(A$17:A103)-1>B$9,"",ROWS(A$17:A103)-1) -> 86 | B103: 1258.212805 | C103: 808.0093502 | D103: 450.2034546 | E103: 168177.8348 | G103: =IF(ROWS(G$17:G103)-1>E$9,"",ROWS(G$17:G103)-1) -> 86 | H103: 1491.43159 | I103: 414.4864795 | J103: 1076.945111 | K103: 119647.2722
A104: =IF(ROWS(A$17:A104)-1>B$9,"",ROWS(A$17:A104)-1) -> 87 | B104: 1258.212805 | C104: 805.8521253 | D104: 452.3606795 | E104: 167725.4742 | G104: =IF(ROWS(G$17:G104)-1>E$9,"",ROWS(G$17:G104)-1) -> 87 | H104: 1491.43159 | I104: 410.7889679 | J104: 1080.642622 | K104: 118566.6296
A105: =IF(ROWS(A$17:A105)-1>B$9,"",ROWS(A$17:A105)-1) -> 88 | B105: 1258.212805 | C105: 803.6845637 | D105: 454.5282411 | E105: 167270.9459 | G105: =IF(ROWS(G$17:G105)-1>E$9,"",ROWS(G$17:G105)-1) -> 88 | H105: 1491.43159 | I105: 407.0787616 | J105: 1084.352829 | K105: 117482.2768
A106: =IF(ROWS(A$17:A106)-1>B$9,"",ROWS(A$17:A106)-1) -> 89 | B106: 1258.212805 | C106: 801.5066159 | D106: 456.7061889 | E106: 166814.2397 | G106: =IF(ROWS(G$17:G106)-1>E$9,"",ROWS(G$17:G106)-1) -> 89 | H106: 1491.43159 | I106: 403.3558169 | J106: 1088.075773 | K106: 116394.201
A107: =IF(ROWS(A$17:A107)-1>B$9,"",ROWS(A$17:A107)-1) -> 90 | B107: 1258.212805 | C107: 799.3182321 | D107: 458.8945728 | E107: 166355.3452 | G107: =IF(ROWS(G$17:G107)-1>E$9,"",ROWS(G$17:G107)-1) -> 90 | H107: 1491.43159 | I107: 399.62009 | J107: 1091.8115 | K107: 115302.3895
A108: =IF(ROWS(A$17:A108)-1>B$9,"",ROWS(A$17:A108)-1) -> 91 | B108: 1258.212805 | C108: 797.1193623 | D108: 461.0934426 | E108: 165894.2517 | G108: =IF(ROWS(G$17:G108)-1>E$9,"",ROWS(G$17:G108)-1) -> 91 | H108: 1491.43159 | I108: 395.8715372 | J108: 1095.560053 | K108: 114206.8294
A109: =IF(ROWS(A$17:A109)-1>B$9,"",ROWS(A$17:A109)-1) -> 92 | B109: 1258.212805 | C109: 794.9099562 | D109: 463.3028487 | E109: 165430.9489 | G109: =IF(ROWS(G$17:G109)-1>E$9,"",ROWS(G$17:G109)-1) -> 92 | H109: 1491.43159 | I109: 392.1101144 | J109: 1099.321476 | K109: 113107.508
A110: =IF(ROWS(A$17:A110)-1>B$9,"",ROWS(A$17:A110)-1) -> 93 | B110: 1258.212805 | C110: 792.6899634 | D110: 465.5228415 | E110: 164965.426 | G110: =IF(ROWS(G$17:G110)-1>E$9,"",ROWS(G$17:G110)-1) -> 93 | H110: 1491.43159 | I110: 388.3357773 | J110: 1103.095813 | K110: 112004.4121
A111: =IF(ROWS(A$17:A111)-1>B$9,"",ROWS(A$17:A111)-1) -> 94 | B111: 1258.212805 | C111: 790.4593331 | D111: 467.7534718 | E111: 164497.6726 | G111: =IF(ROWS(G$17:G111)-1>E$9,"",ROWS(G$17:G111)-1) -> 94 | H111: 1491.43159 | I111: 384.5484817 | J111: 1106.883109 | K111: 110897.529
A112: =IF(ROWS(A$17:A112)-1>B$9,"",ROWS(A$17:A112)-1) -> 95 | B112: 1258.212805 | C112: 788.2180144 | D112: 469.9947905 | E112: 164027.6778 | G112: =IF(ROWS(G$17:G112)-1>E$9,"",ROWS(G$17:G112)-1) -> 95 | H112: 1491.43159 | I112: 380.748183 | J112: 1110.683407 | K112: 109786.8456
A113: =IF(ROWS(A$17:A113)-1>B$9,"",ROWS(A$17:A113)-1) -> 96 | B113: 1258.212805 | C113: 785.965956 | D113: 472.2468489 | E113: 163555.4309 | G113: =IF(ROWS(G$17:G113)-1>E$9,"",ROWS(G$17:G113)-1) -> 96 | H113: 1491.43159 | I113: 376.9348367 | J113: 1114.496754 | K113: 108672.3489
A114: =IF(ROWS(A$17:A114)-1>B$9,"",ROWS(A$17:A114)-1) -> 97 | B114: 1258.212805 | C114: 783.7031065 | D114: 474.5096983 | E114: 163080.9212 | G114: =IF(ROWS(G$17:G114)-1>E$9,"",ROWS(G$17:G114)-1) -> 97 | H114: 1491.43159 | I114: 373.1083978 | J114: 1118.323193 | K114: 107554.0257
A115: =IF(ROWS(A$17:A115)-1>B$9,"",ROWS(A$17:A115)-1) -> 98 | B115: 1258.212805 | C115: 781.4294142 | D115: 476.7833906 | E115: 162604.1378 | G115: =IF(ROWS(G$17:G115)-1>E$9,"",ROWS(G$17:G115)-1) -> 98 | H115: 1491.43159 | I115: 369.2688215 | J115: 1122.162769 | K115: 106431.8629
A116: =IF(ROWS(A$17:A116)-1>B$9,"",ROWS(A$17:A116)-1) -> 99 | B116: 1258.212805 | C116: 779.1448271 | D116: 479.0679777 | E116: 162125.0699 | G116: =IF(ROWS(G$17:G116)-1>E$9,"",ROWS(G$17:G116)-1) -> 99 | H116: 1491.43159 | I116: 365.4160627 | J116: 1126.015528 | K116: 105305.8474
A117: =IF(ROWS(A$17:A117)-1>B$9,"",ROWS(A$17:A117)-1) -> 100 | B117: 1258.212805 | C117: 776.8492931 | D117: 481.3635118 | E117: 161643.7063 | G117: =IF(ROWS(G$17:G117)-1>E$9,"",ROWS(G$17:G117)-1) -> 100 | H117: 1491.43159 | I117: 361.550076 | J117: 1129.881514 | K117: 104175.9659
A118: =IF(ROWS(A$17:A118)-1>B$9,"",ROWS(A$17:A118)-1) -> 101 | B118: 1258.212805 | C118: 774.5427596 | D118: 483.6700453 | E118: 161160.0363 | G118: =IF(ROWS(G$17:G118)-1>E$9,"",ROWS(G$17:G118)-1) -> 101 | H118: 1491.43159 | I118: 357.6708162 | J118: 1133.760774 | K118: 103042.2051
A119: =IF(ROWS(A$17:A119)-1>B$9,"",ROWS(A$17:A119)-1) -> 102 | B119: 1258.212805 | C119: 772.2251739 | D119: 485.9876309 | E119: 160674.0487 | G119: =IF(ROWS(G$17:G119)-1>E$9,"",ROWS(G$17:G119)-1) -> 102 | H119: 1491.43159 | I119: 353.7782375 | J119: 1137.653353 | K119: 101904.5517
A120: =IF(ROWS(A$17:A120)-1>B$9,"",ROWS(A$17:A120)-1) -> 103 | B120: 1258.212805 | C120: 769.8964832 | D120: 488.3163216 | E120: 160185.7323 | G120: =IF(ROWS(G$17:G120)-1>E$9,"",ROWS(G$17:G120)-1) -> 103 | H120: 1491.43159 | I120: 349.8722943 | J120: 1141.559296 | K120: 100762.9924
A121: =IF(ROWS(A$17:A121)-1>B$9,"",ROWS(A$17:A121)-1) -> 104 | B121: 1258.212805 | C121: 767.5566342 | D121: 490.6561707 | E121: 159695.0762 | G121: =IF(ROWS(G$17:G121)-1>E$9,"",ROWS(G$17:G121)-1) -> 104 | H121: 1491.43159 | I121: 345.9529407 | J121: 1145.47865 | K121: 99617.5138
A122: =IF(ROWS(A$17:A122)-1>B$9,"",ROWS(A$17:A122)-1) -> 105 | B122: 1258.212805 | C122: 765.2055733 | D122: 493.0072315 | E122: 159202.0689 | G122: =IF(ROWS(G$17:G122)-1>E$9,"",ROWS(G$17:G122)-1) -> 105 | H122: 1491.43159 | I122: 342.0201307 | J122: 1149.41146 | K122: 98468.10234
A123: =IF(ROWS(A$17:A123)-1>B$9,"",ROWS(A$17:A123)-1) -> 106 | B123: 1258.212805 | C123: 762.843247 | D123: 495.3695578 | E123: 158706.6994 | G123: =IF(ROWS(G$17:G123)-1>E$9,"",ROWS(G$17:G123)-1) -> 106 | H123: 1491.43159 | I123: 338.073818 | J123: 1153.357772 | K123: 97314.74456
A124: =IF(ROWS(A$17:A124)-1>B$9,"",ROWS(A$17:A124)-1) -> 107 | B124: 1258.212805 | C124: 760.4696012 | D124: 497.7432036 | E124: 158208.9562 | G124: =IF(ROWS(G$17:G124)-1>E$9,"",ROWS(G$17:G124)-1) -> 107 | H124: 1491.43159 | I124: 334.1139563 | J124: 1157.317634 | K124: 96157.42693
A125: =IF(ROWS(A$17:A125)-1>B$9,"",ROWS(A$17:A125)-1) -> 108 | B125: 1258.212805 | C125: 758.0845817 | D125: 500.1282231 | E125: 157708.828 | G125: =IF(ROWS(G$17:G125)-1>E$9,"",ROWS(G$17:G125)-1) -> 108 | H125: 1491.43159 | I125: 330.1404991 | J125: 1161.291091 | K125: 94996.13584
A126: =IF(ROWS(A$17:A126)-1>B$9,"",ROWS(A$17:A126)-1) -> 109 | B126: 1258.212805 | C126: 755.688134 | D126: 502.5246709 | E126: 157206.3033 | G126: =IF(ROWS(G$17:G126)-1>E$9,"",ROWS(G$17:G126)-1) -> 109 | H126: 1491.43159 | I126: 326.1533997 | J126: 1165.278191 | K126: 93830.85765
A127: =IF(ROWS(A$17:A127)-1>B$9,"",ROWS(A$17:A127)-1) -> 110 | B127: 1258.212805 | C127: 753.2802033 | D127: 504.9326016 | E127: 156701.3707 | G127: =IF(ROWS(G$17:G127)-1>E$9,"",ROWS(G$17:G127)-1) -> 110 | H127: 1491.43159 | I127: 322.1526113 | J127: 1169.278979 | K127: 92661.57867
A128: =IF(ROWS(A$17:A128)-1>B$9,"",ROWS(A$17:A128)-1) -> 111 | B128: 1258.212805 | C128: 750.8607345 | D128: 507.3520703 | E128: 156194.0186 | G128: =IF(ROWS(G$17:G128)-1>E$9,"",ROWS(G$17:G128)-1) -> 111 | H128: 1491.43159 | I128: 318.1380868 | J128: 1173.293504 | K128: 91488.28517
A129: =IF(ROWS(A$17:A129)-1>B$9,"",ROWS(A$17:A129)-1) -> 112 | B129: 1258.212805 | C129: 748.4296725 | D129: 509.7831323 | E129: 155684.2355 | G129: =IF(ROWS(G$17:G129)-1>E$9,"",ROWS(G$17:G129)-1) -> 112 | H129: 1491.43159 | I129: 314.1097791 | J129: 1177.321811 | K129: 90310.96335
A130: =IF(ROWS(A$17:A130)-1>B$9,"",ROWS(A$17:A130)-1) -> 113 | B130: 1258.212805 | C130: 745.9869617 | D130: 512.2258431 | E130: 155172.0096 | G130: =IF(ROWS(G$17:G130)-1>E$9,"",ROWS(G$17:G130)-1) -> 113 | H130: 1491.43159 | I130: 310.0676409 | J130: 1181.36395 | K130: 89129.59941
A131: =IF(ROWS(A$17:A131)-1>B$9,"",ROWS(A$17:A131)-1) -> 114 | B131: 1258.212805 | C131: 743.5325462 | D131: 514.6802586 | E131: 154657.3294 | G131: =IF(ROWS(G$17:G131)-1>E$9,"",ROWS(G$17:G131)-1) -> 114 | H131: 1491.43159 | I131: 306.0116246 | J131: 1185.419966 | K131: 87944.17944
A132: =IF(ROWS(A$17:A132)-1>B$9,"",ROWS(A$17:A132)-1) -> 115 | B132: 1258.212805 | C132: 741.06637 | D132: 517.1464349 | E132: 154140.1829 | G132: =IF(ROWS(G$17:G132)-1>E$9,"",ROWS(G$17:G132)-1) -> 115 | H132: 1491.43159 | I132: 301.9416827 | J132: 1189.489908 | K132: 86754.68953
A133: =IF(ROWS(A$17:A133)-1>B$9,"",ROWS(A$17:A133)-1) -> 116 | B133: 1258.212805 | C133: 738.5883766 | D133: 519.6244282 | E133: 153620.5585 | G133: =IF(ROWS(G$17:G133)-1>E$9,"",ROWS(G$17:G133)-1) -> 116 | H133: 1491.43159 | I133: 297.8577674 | J133: 1193.573823 | K133: 85561.11571
A134: =IF(ROWS(A$17:A134)-1>B$9,"",ROWS(A$17:A134)-1) -> 117 | B134: 1258.212805 | C134: 736.0985096 | D134: 522.1142953 | E134: 153098.4442 | G134: =IF(ROWS(G$17:G134)-1>E$9,"",ROWS(G$17:G134)-1) -> 117 | H134: 1491.43159 | I134: 293.7598306 | J134: 1197.67176 | K134: 84363.44395
A135: =IF(ROWS(A$17:A135)-1>B$9,"",ROWS(A$17:A135)-1) -> 118 | B135: 1258.212805 | C135: 733.5967119 | D135: 524.6160929 | E135: 152573.8281 | G135: =IF(ROWS(G$17:G135)-1>E$9,"",ROWS(G$17:G135)-1) -> 118 | H135: 1491.43159 | I135: 289.6478242 | J135: 1201.783766 | K135: 83161.66018
A136: =IF(ROWS(A$17:A136)-1>B$9,"",ROWS(A$17:A136)-1) -> 119 | B136: 1258.212805 | C136: 731.0829265 | D136: 527.1298784 | E136: 152046.6983 | G136: =IF(ROWS(G$17:G136)-1>E$9,"",ROWS(G$17:G136)-1) -> 119 | H136: 1491.43159 | I136: 285.5217 | J136: 1205.90989 | K136: 81955.75029
A137: =IF(ROWS(A$17:A137)-1>B$9,"",ROWS(A$17:A137)-1) -> 120 | B137: 1258.212805 | C137: 728.5570958 | D137: 529.655709 | E137: 151517.0425 | G137: =IF(ROWS(G$17:G137)-1>E$9,"",ROWS(G$17:G137)-1) -> 120 | H137: 1491.43159 | I137: 281.3814093 | J137: 1210.050181 | K137: 80745.70011
A138: =IF(ROWS(A$17:A138)-1>B$9,"",ROWS(A$17:A138)-1) -> 121 | B138: 1258.212805 | C138: 726.0191622 | D138: 532.1936427 | E138: 150984.8489 | G138: =IF(ROWS(G$17:G138)-1>E$9,"",ROWS(G$17:G138)-1) -> 121 | H138: 1491.43159 | I138: 277.2269037 | J138: 1214.204687 | K138: 79531.49542
A139: =IF(ROWS(A$17:A139)-1>B$9,"",ROWS(A$17:A139)-1) -> 122 | B139: 1258.212805 | C139: 723.4690677 | D139: 534.7437372 | E139: 150450.1052 | G139: =IF(ROWS(G$17:G139)-1>E$9,"",ROWS(G$17:G139)-1) -> 122 | H139: 1491.43159 | I139: 273.0581343 | J139: 1218.373456 | K139: 78313.12197
A140: =IF(ROWS(A$17:A140)-1>B$9,"",ROWS(A$17:A140)-1) -> 123 | B140: 1258.212805 | C140: 720.9067539 | D140: 537.3060509 | E140: 149912.7991 | G140: =IF(ROWS(G$17:G140)-1>E$9,"",ROWS(G$17:G140)-1) -> 123 | H140: 1491.43159 | I140: 268.8750521 | J140: 1222.556538 | K140: 77090.56543
A141: =IF(ROWS(A$17:A141)-1>B$9,"",ROWS(A$17:A141)-1) -> 124 | B141: 1258.212805 | C141: 718.3321624 | D141: 539.8806424 | E141: 149372.9185 | G141: =IF(ROWS(G$17:G141)-1>E$9,"",ROWS(G$17:G141)-1) -> 124 | H141: 1491.43159 | I141: 264.677608 | J141: 1226.753982 | K141: 75863.81145
A142: =IF(ROWS(A$17:A142)-1>B$9,"",ROWS(A$17:A142)-1) -> 125 | B142: 1258.212805 | C142: 715.7452343 | D142: 542.4675705 | E142: 148830.4509 | G142: =IF(ROWS(G$17:G142)-1>E$9,"",ROWS(G$17:G142)-1) -> 125 | H142: 1491.43159 | I142: 260.4657526 | J142: 1230.965838 | K142: 74632.84561
A143: =IF(ROWS(A$17:A143)-1>B$9,"",ROWS(A$17:A143)-1) -> 126 | B143: 1258.212805 | C143: 713.1459106 | D143: 545.0668943 | E143: 148285.384 | G143: =IF(ROWS(G$17:G143)-1>E$9,"",ROWS(G$17:G143)-1) -> 126 | H143: 1491.43159 | I143: 256.2394366 | J143: 1235.192154 | K143: 73397.65346
A144: =IF(ROWS(A$17:A144)-1>B$9,"",ROWS(A$17:A144)-1) -> 127 | B144: 1258.212805 | C144: 710.5341317 | D144: 547.6786731 | E144: 147737.7053 | G144: =IF(ROWS(G$17:G144)-1>E$9,"",ROWS(G$17:G144)-1) -> 127 | H144: 1491.43159 | I144: 251.9986102 | J144: 1239.43298 | K144: 72158.22048
A145: =IF(ROWS(A$17:A145)-1>B$9,"",ROWS(A$17:A145)-1) -> 128 | B145: 1258.212805 | C145: 707.9098381 | D145: 550.3029668 | E145: 147187.4024 | G145: =IF(ROWS(G$17:G145)-1>E$9,"",ROWS(G$17:G145)-1) -> 128 | H145: 1491.43159 | I145: 247.7432236 | J145: 1243.688367 | K145: 70914.53211
A146: =IF(ROWS(A$17:A146)-1>B$9,"",ROWS(A$17:A146)-1) -> 129 | B146: 1258.212805 | C146: 705.2729697 | D146: 552.9398352 | E146: 146634.4625 | G146: =IF(ROWS(G$17:G146)-1>E$9,"",ROWS(G$17:G146)-1) -> 129 | H146: =IF(G146="","",E$10) -> 1491.43159 | I146: =IF(G146="","",K145*E$7) -> 243.4732269 | J146: 1247.958363 | K146: 69666.57375
A147: =IF(ROWS(A$17:A147)-1>B$9,"",ROWS(A$17:A147)-1) -> 130 | B147: =IF(A147="","",B$10) -> 1258.212805 | C147: =IF(A147="","",E146*B$7) -> 702.6234663 | D147: =IF(A147="","",B147-C147) -> 555.5893385 | E147: =IF(A147="","",E146-D147) -> 146078.8732 | G147: =IF(ROWS(G$17:G147)-1>E$9,"",ROWS(G$17:G147)-1) -> 130 | H147: 1491.43159 | I147: 239.1885699 | J147: =IF(G147="","",H147-I147) -> 1252.243021 | K147: =IF(G147="","",K146-J147) -> 68414.33073
A148: =IF(ROWS(A$17:A148)-1>B$9,"",ROWS(A$17:A148)-1) -> 131 | B148: 1258.212805 | C148: 699.9612674 | D148: 558.2515375 | E148: 145520.6217 | G148: =IF(ROWS(G$17:G148)-1>E$9,"",ROWS(G$17:G148)-1) -> 131 | H148: 1491.43159 | I148: 234.8892022 | J148: 1256.542388 | K148: 67157.78834
A149: =IF(ROWS(A$17:A149)-1>B$9,"",ROWS(A$17:A149)-1) -> 132 | B149: 1258.212805 | C149: 697.2863121 | D149: 560.9264927 | E149: 144959.6952 | G149: =IF(ROWS(G$17:G149)-1>E$9,"",ROWS(G$17:G149)-1) -> 132 | H149: 1491.43159 | I149: 230.5750733 | J149: 1260.856517 | K149: 65896.93182
A150: =IF(ROWS(A$17:A150)-1>B$9,"",ROWS(A$17:A150)-1) -> 133 | B150: 1258.212805 | C150: 694.5985393 | D150: 563.6142655 | E150: 144396.0809 | G150: =IF(ROWS(G$17:G150)-1>E$9,"",ROWS(G$17:G150)-1) -> 133 | H150: 1491.43159 | I150: 226.2461326 | J150: 1265.185458 | K150: 64631.74636
A151: =IF(ROWS(A$17:A151)-1>B$9,"",ROWS(A$17:A151)-1) -> 134 | B151: 1258.212805 | C151: 691.8978876 | D151: 566.3149172 | E151: 143829.766 | G151: =IF(ROWS(G$17:G151)-1>E$9,"",ROWS(G$17:G151)-1) -> 134 | H151: 1491.43159 | I151: 221.9023292 | J151: 1269.529261 | K151: 63362.2171
A152: =IF(ROWS(A$17:A152)-1>B$9,"",ROWS(A$17:A152)-1) -> 135 | B152: 1258.212805 | C152: 689.1842953 | D152: 569.0285095 | E152: 143260.7375 | G152: =IF(ROWS(G$17:G152)-1>E$9,"",ROWS(G$17:G152)-1) -> 135 | H152: 1491.43159 | I152: 217.543612 | J152: 1273.887978 | K152: 62088.32912
A153: =IF(ROWS(A$17:A153)-1>B$9,"",ROWS(A$17:A153)-1) -> 136 | B153: 1258.212805 | C153: 686.4577004 | D153: 571.7551045 | E153: 142688.9824 | G153: =IF(ROWS(G$17:G153)-1>E$9,"",ROWS(G$17:G153)-1) -> 136 | H153: 1491.43159 | I153: 213.16993 | J153: 1278.26166 | K153: 60810.06746
A154: =IF(ROWS(A$17:A154)-1>B$9,"",ROWS(A$17:A154)-1) -> 137 | B154: 1258.212805 | C154: 683.7180405 | D154: 574.4947643 | E154: 142114.4876 | G154: =IF(ROWS(G$17:G154)-1>E$9,"",ROWS(G$17:G154)-1) -> 137 | H154: 1491.43159 | I154: 208.7812316 | J154: 1282.650359 | K154: 59527.4171
A155: =IF(ROWS(A$17:A155)-1>B$9,"",ROWS(A$17:A155)-1) -> 138 | B155: 1258.212805 | C155: 680.9652531 | D155: 577.2475518 | E155: 141537.2401 | G155: =IF(ROWS(G$17:G155)-1>E$9,"",ROWS(G$17:G155)-1) -> 138 | H155: 1491.43159 | I155: 204.3774654 | J155: 1287.054125 | K155: 58240.36298
A156: =IF(ROWS(A$17:A156)-1>B$9,"",ROWS(A$17:A156)-1) -> 139 | B156: 1258.212805 | C156: 678.1992752 | D156: 580.0135296 | E156: 140957.2265 | G156: =IF(ROWS(G$17:G156)-1>E$9,"",ROWS(G$17:G156)-1) -> 139 | H156: 1491.43159 | I156: 199.9585796 | J156: 1291.473011 | K156: 56948.88997
A157: =IF(ROWS(A$17:A157)-1>B$9,"",ROWS(A$17:A157)-1) -> 140 | B157: 1258.212805 | C157: 675.4200437 | D157: 582.7927611 | E157: 140374.4338 | G157: =IF(ROWS(G$17:G157)-1>E$9,"",ROWS(G$17:G157)-1) -> 140 | H157: 1491.43159 | I157: 195.5245222 | J157: 1295.907068 | K157: 55652.9829
A158: =IF(ROWS(A$17:A158)-1>B$9,"",ROWS(A$17:A158)-1) -> 141 | B158: 1258.212805 | C158: 672.6274951 | D158: 585.5853097 | E158: 139788.8484 | G158: =IF(ROWS(G$17:G158)-1>E$9,"",ROWS(G$17:G158)-1) -> 141 | H158: 1491.43159 | I158: 191.0752413 | J158: 1300.356349 | K158: 54352.62655
A159: =IF(ROWS(A$17:A159)-1>B$9,"",ROWS(A$17:A159)-1) -> 142 | B159: 1258.212805 | C159: 669.8215655 | D159: 588.3912394 | E159: 139200.4572 | G159: =IF(ROWS(G$17:G159)-1>E$9,"",ROWS(G$17:G159)-1) -> 142 | H159: 1491.43159 | I159: 186.6106845 | J159: 1304.820906 | K159: 53047.80565
A160: =IF(ROWS(A$17:A160)-1>B$9,"",ROWS(A$17:A160)-1) -> 143 | B160: 1258.212805 | C160: 667.0021908 | D160: 591.210614 | E160: 138609.2466 | G160: =IF(ROWS(G$17:G160)-1>E$9,"",ROWS(G$17:G160)-1) -> 143 | H160: 1491.43159 | I160: 182.1307994 | J160: 1309.300791 | K160: 51738.50485
A161: =IF(ROWS(A$17:A161)-1>B$9,"",ROWS(A$17:A161)-1) -> 144 | B161: 1258.212805 | C161: 664.1693066 | D161: 594.0434982 | E161: 138015.2031 | G161: =IF(ROWS(G$17:G161)-1>E$9,"",ROWS(G$17:G161)-1) -> 144 | H161: 1491.43159 | I161: 177.6355333 | J161: 1313.796057 | K161: 50424.7088
A162: =IF(ROWS(A$17:A162)-1>B$9,"",ROWS(A$17:A162)-1) -> 145 | B162: 1258.212805 | C162: 661.3228482 | D162: 596.8899567 | E162: 137418.3131 | G162: =IF(ROWS(G$17:G162)-1>E$9,"",ROWS(G$17:G162)-1) -> 145 | H162: 1491.43159 | I162: 173.1248335 | J162: 1318.306757 | K162: 49106.40204
A163: =IF(ROWS(A$17:A163)-1>B$9,"",ROWS(A$17:A163)-1) -> 146 | B163: 1258.212805 | C163: 658.4627505 | D163: 599.7500544 | E163: 136818.5631 | G163: =IF(ROWS(G$17:G163)-1>E$9,"",ROWS(G$17:G163)-1) -> 146 | H163: 1491.43159 | I163: 168.598647 | J163: 1322.832943 | K163: 47783.5691
A164: =IF(ROWS(A$17:A164)-1>B$9,"",ROWS(A$17:A164)-1) -> 147 | B164: 1258.212805 | C164: 655.5889481 | D164: 602.6238567 | E164: 136215.9392 | G164: =IF(ROWS(G$17:G164)-1>E$9,"",ROWS(G$17:G164)-1) -> 147 | H164: 1491.43159 | I164: 164.0569206 | J164: 1327.37467 | K164: 46456.19443
A165: =IF(ROWS(A$17:A165)-1>B$9,"",ROWS(A$17:A165)-1) -> 148 | B165: 1258.212805 | C165: 652.7013755 | D165: 605.5114294 | E165: 135610.4278 | G165: =IF(ROWS(G$17:G165)-1>E$9,"",ROWS(G$17:G165)-1) -> 148 | H165: 1491.43159 | I165: 159.4996009 | J165: 1331.93199 | K165: 45124.26244
A166: =IF(ROWS(A$17:A166)-1>B$9,"",ROWS(A$17:A166)-1) -> 149 | B166: 1258.212805 | C166: 649.7999665 | D166: 608.4128383 | E166: 135002.015 | G166: =IF(ROWS(G$17:G166)-1>E$9,"",ROWS(G$17:G166)-1) -> 149 | H166: 1491.43159 | I166: 154.9266344 | J166: 1336.504956 | K166: 43787.75748
A167: =IF(ROWS(A$17:A167)-1>B$9,"",ROWS(A$17:A167)-1) -> 150 | B167: 1258.212805 | C167: 646.884655 | D167: 611.3281498 | E167: 134390.6868 | G167: =IF(ROWS(G$17:G167)-1>E$9,"",ROWS(G$17:G167)-1) -> 150 | H167: 1491.43159 | I167: 150.3379674 | J167: 1341.093623 | K167: 42446.66386
A168: =IF(ROWS(A$17:A168)-1>B$9,"",ROWS(A$17:A168)-1) -> 151 | B168: 1258.212805 | C168: 643.9553743 | D168: 614.2574305 | E168: 133776.4294 | G168: =IF(ROWS(G$17:G168)-1>E$9,"",ROWS(G$17:G168)-1) -> 151 | H168: 1491.43159 | I168: 145.7335459 | J168: 1345.698044 | K168: 41100.96581
A169: =IF(ROWS(A$17:A169)-1>B$9,"",ROWS(A$17:A169)-1) -> 152 | B169: 1258.212805 | C169: 641.0120575 | D169: 617.2007474 | E169: 133159.2286 | G169: =IF(ROWS(G$17:G169)-1>E$9,"",ROWS(G$17:G169)-1) -> 152 | H169: 1491.43159 | I169: 141.113316 | J169: 1350.318274 | K169: 39750.64754
A170: =IF(ROWS(A$17:A170)-1>B$9,"",ROWS(A$17:A170)-1) -> 153 | B170: 1258.212805 | C170: 638.0546372 | D170: 620.1581676 | E170: 132539.0705 | G170: =IF(ROWS(G$17:G170)-1>E$9,"",ROWS(G$17:G170)-1) -> 153 | H170: 1491.43159 | I170: 136.4772232 | J170: 1354.954367 | K170: 38395.69317
A171: =IF(ROWS(A$17:A171)-1>B$9,"",ROWS(A$17:A171)-1) -> 154 | B171: 1258.212805 | C171: 635.083046 | D171: 623.1297589 | E171: 131915.9407 | G171: =IF(ROWS(G$17:G171)-1>E$9,"",ROWS(G$17:G171)-1) -> 154 | H171: 1491.43159 | I171: 131.8252132 | J171: 1359.606377 | K171: 37036.0868
A172: =IF(ROWS(A$17:A172)-1>B$9,"",ROWS(A$17:A172)-1) -> 155 | B172: 1258.212805 | C172: 632.0972159 | D172: 626.115589 | E172: 131289.8251 | G172: =IF(ROWS(G$17:G172)-1>E$9,"",ROWS(G$17:G172)-1) -> 155 | H172: 1491.43159 | I172: 127.1572313 | J172: 1364.274359 | K172: 35671.81244
A173: =IF(ROWS(A$17:A173)-1>B$9,"",ROWS(A$17:A173)-1) -> 156 | B173: 1258.212805 | C173: 629.0970787 | D173: 629.1157261 | E173: 130660.7094 | G173: =IF(ROWS(G$17:G173)-1>E$9,"",ROWS(G$17:G173)-1) -> 156 | H173: 1491.43159 | I173: 122.4732227 | J173: 1368.958368 | K173: 34302.85407
A174: =IF(ROWS(A$17:A174)-1>B$9,"",ROWS(A$17:A174)-1) -> 157 | B174: 1258.212805 | C174: 626.0825658 | D174: 632.130239 | E174: 130028.5792 | G174: =IF(ROWS(G$17:G174)-1>E$9,"",ROWS(G$17:G174)-1) -> 157 | H174: 1491.43159 | I174: 117.7731323 | J174: 1373.658458 | K174: 32929.19561
A175: =IF(ROWS(A$17:A175)-1>B$9,"",ROWS(A$17:A175)-1) -> 158 | B175: 1258.212805 | C175: 623.0536084 | D175: 635.1591964 | E175: 129393.42 | G175: =IF(ROWS(G$17:G175)-1>E$9,"",ROWS(G$17:G175)-1) -> 158 | H175: 1491.43159 | I175: 113.0569049 | J175: 1378.374685 | K175: 31550.82093
A176: =IF(ROWS(A$17:A176)-1>B$9,"",ROWS(A$17:A176)-1) -> 159 | B176: 1258.212805 | C176: 620.0101373 | D176: 638.2026675 | E176: 128755.2173 | G176: =IF(ROWS(G$17:G176)-1>E$9,"",ROWS(G$17:G176)-1) -> 159 | H176: 1491.43159 | I176: 108.3244852 | J176: 1383.107105 | K176: 30167.71382
A177: =IF(ROWS(A$17:A177)-1>B$9,"",ROWS(A$17:A177)-1) -> 160 | B177: 1258.212805 | C177: 616.9520828 | D177: 641.260722 | E177: 128113.9566 | G177: =IF(ROWS(G$17:G177)-1>E$9,"",ROWS(G$17:G177)-1) -> 160 | H177: 1491.43159 | I177: 103.5758174 | J177: 1387.855773 | K177: 28779.85805
A178: =IF(ROWS(A$17:A178)-1>B$9,"",ROWS(A$17:A178)-1) -> 161 | B178: 1258.212805 | C178: 613.8793752 | D178: 644.3334296 | E178: 127469.6231 | G178: =IF(ROWS(G$17:G178)-1>E$9,"",ROWS(G$17:G178)-1) -> 161 | H178: 1491.43159 | I178: 98.81084596 | J178: 1392.620744 | K178: 27387.2373
A179: =IF(ROWS(A$17:A179)-1>B$9,"",ROWS(A$17:A179)-1) -> 162 | B179: 1258.212805 | C179: 610.7919442 | D179: 647.4208606 | E179: 126822.2023 | G179: =IF(ROWS(G$17:G179)-1>E$9,"",ROWS(G$17:G179)-1) -> 162 | H179: 1491.43159 | I179: 94.02951474 | J179: 1397.402076 | K179: 25989.83523
A180: =IF(ROWS(A$17:A180)-1>B$9,"",ROWS(A$17:A180)-1) -> 163 | B180: 1258.212805 | C180: 607.6897192 | D180: 650.5230856 | E180: 126171.6792 | G180: =IF(ROWS(G$17:G180)-1>E$9,"",ROWS(G$17:G180)-1) -> 163 | H180: 1491.43159 | I180: 89.23176761 | J180: 1402.199823 | K180: 24587.6354
A181: =IF(ROWS(A$17:A181)-1>B$9,"",ROWS(A$17:A181)-1) -> 164 | B181: 1258.212805 | C181: 604.5726295 | D181: 653.6401754 | E181: 125518.039 | G181: =IF(ROWS(G$17:G181)-1>E$9,"",ROWS(G$17:G181)-1) -> 164 | H181: 1491.43159 | I181: 84.41754822 | J181: 1407.014042 | K181: 23180.62136
A182: =IF(ROWS(A$17:A182)-1>B$9,"",ROWS(A$17:A182)-1) -> 165 | B182: 1258.212805 | C182: 601.4406036 | D182: 656.7722012 | E182: 124861.2668 | G182: =IF(ROWS(G$17:G182)-1>E$9,"",ROWS(G$17:G182)-1) -> 165 | H182: 1491.43159 | I182: 79.58680001 | J182: 1411.84479 | K182: 21768.77657
A183: =IF(ROWS(A$17:A183)-1>B$9,"",ROWS(A$17:A183)-1) -> 166 | B183: 1258.212805 | C183: 598.2935702 | D183: 659.9192347 | E183: 124201.3476 | G183: =IF(ROWS(G$17:G183)-1>E$9,"",ROWS(G$17:G183)-1) -> 166 | H183: 1491.43159 | I183: 74.73946623 | J183: 1416.692124 | K183: 20352.08445
A184: =IF(ROWS(A$17:A184)-1>B$9,"",ROWS(A$17:A184)-1) -> 167 | B184: 1258.212805 | C184: 595.1314572 | D184: 663.0813477 | E184: 123538.2662 | G184: =IF(ROWS(G$17:G184)-1>E$9,"",ROWS(G$17:G184)-1) -> 167 | H184: 1491.43159 | I184: 69.87548994 | J184: 1421.5561 | K184: 18930.52835
A185: =IF(ROWS(A$17:A185)-1>B$9,"",ROWS(A$17:A185)-1) -> 168 | B185: 1258.212805 | C185: 591.9541924 | D185: 666.2586125 | E185: 122872.0076 | G185: =IF(ROWS(G$17:G185)-1>E$9,"",ROWS(G$17:G185)-1) -> 168 | H185: 1491.43159 | I185: 64.99481399 | J185: 1426.436776 | K185: 17504.09157
A186: =IF(ROWS(A$17:A186)-1>B$9,"",ROWS(A$17:A186)-1) -> 169 | B186: 1258.212805 | C186: 588.7617032 | D186: 669.4511017 | E186: 122202.5565 | G186: =IF(ROWS(G$17:G186)-1>E$9,"",ROWS(G$17:G186)-1) -> 169 | H186: 1491.43159 | I186: 60.09738106 | J186: 1431.334209 | K186: 16072.75736
A187: =IF(ROWS(A$17:A187)-1>B$9,"",ROWS(A$17:A187)-1) -> 170 | B187: 1258.212805 | C187: 585.5539167 | D187: 672.6588882 | E187: 121529.8976 | G187: =IF(ROWS(G$17:G187)-1>E$9,"",ROWS(G$17:G187)-1) -> 170 | H187: 1491.43159 | I187: 55.18313361 | J187: 1436.248457 | K187: 14636.5089
A188: =IF(ROWS(A$17:A188)-1>B$9,"",ROWS(A$17:A188)-1) -> 171 | B188: 1258.212805 | C188: 582.3307595 | D188: 675.8820454 | E188: 120854.0156 | G188: =IF(ROWS(G$17:G188)-1>E$9,"",ROWS(G$17:G188)-1) -> 171 | H188: 1491.43159 | I188: 50.25201391 | J188: 1441.179576 | K188: 13195.32933
A189: =IF(ROWS(A$17:A189)-1>B$9,"",ROWS(A$17:A189)-1) -> 172 | B189: 1258.212805 | C189: 579.092158 | D189: 679.1206468 | E189: 120174.8949 | G189: =IF(ROWS(G$17:G189)-1>E$9,"",ROWS(G$17:G189)-1) -> 172 | H189: 1491.43159 | I189: 45.30396403 | J189: 1446.127626 | K189: 11749.2017
A190: =IF(ROWS(A$17:A190)-1>B$9,"",ROWS(A$17:A190)-1) -> 173 | B190: 1258.212805 | C190: 575.8380382 | D190: 682.3747666 | E190: 119492.5202 | G190: =IF(ROWS(G$17:G190)-1>E$9,"",ROWS(G$17:G190)-1) -> 173 | H190: 1491.43159 | I190: 40.33892584 | J190: 1451.092665 | K190: 10298.10904
A191: =IF(ROWS(A$17:A191)-1>B$9,"",ROWS(A$17:A191)-1) -> 174 | B191: 1258.212805 | C191: 572.5683258 | D191: 685.644479 | E191: 118806.8757 | G191: =IF(ROWS(G$17:G191)-1>E$9,"",ROWS(G$17:G191)-1) -> 174 | H191: 1491.43159 | I191: 35.35684103 | J191: 1456.074749 | K191: 8842.034288
A192: =IF(ROWS(A$17:A192)-1>B$9,"",ROWS(A$17:A192)-1) -> 175 | B192: 1258.212805 | C192: 569.282946 | D192: 688.9298588 | E192: 118117.9458 | G192: =IF(ROWS(G$17:G192)-1>E$9,"",ROWS(G$17:G192)-1) -> 175 | H192: 1491.43159 | I192: 30.35765106 | J192: 1461.073939 | K192: 7380.960349
A193: =IF(ROWS(A$17:A193)-1>B$9,"",ROWS(A$17:A193)-1) -> 176 | B193: 1258.212805 | C193: 565.9818238 | D193: 692.2309811 | E193: 117425.7149 | G193: =IF(ROWS(G$17:G193)-1>E$9,"",ROWS(G$17:G193)-1) -> 176 | H193: 1491.43159 | I193: 25.3412972 | J193: 1466.090293 | K193: 5914.870056
A194: =IF(ROWS(A$17:A194)-1>B$9,"",ROWS(A$17:A194)-1) -> 177 | B194: 1258.212805 | C194: 562.6648837 | D194: 695.5479212 | E194: 116730.1669 | G194: =IF(ROWS(G$17:G194)-1>E$9,"",ROWS(G$17:G194)-1) -> 177 | H194: 1491.43159 | I194: 20.30772052 | J194: 1471.12387 | K194: 4443.746186
A195: =IF(ROWS(A$17:A195)-1>B$9,"",ROWS(A$17:A195)-1) -> 178 | B195: 1258.212805 | C195: 559.3320499 | D195: 698.880755 | E195: 116031.2862 | G195: =IF(ROWS(G$17:G195)-1>E$9,"",ROWS(G$17:G195)-1) -> 178 | H195: 1491.43159 | I195: 15.2568619 | J195: 1476.174728 | K195: 2967.571457
A196: =IF(ROWS(A$17:A196)-1>B$9,"",ROWS(A$17:A196)-1) -> 179 | B196: 1258.212805 | C196: 555.9832463 | D196: 702.2295586 | E196: 115329.0566 | G196: =IF(ROWS(G$17:G196)-1>E$9,"",ROWS(G$17:G196)-1) -> 179 | H196: 1491.43159 | I196: 10.188662 | J196: 1481.242928 | K196: 1486.328529
A197: =IF(ROWS(A$17:A197)-1>B$9,"",ROWS(A$17:A197)-1) -> 180 | B197: 1258.212805 | C197: 552.6183963 | D197: 705.5944085 | E197: 114623.4622 | G197: =IF(ROWS(G$17:G197)-1>E$9,"",ROWS(G$17:G197)-1) -> 180 | H197: 1491.43159 | I197: 5.103061283 | J197: 1486.328529 | K197: -1.705302566e-10
A198: =IF(ROWS(A$17:A198)-1>B$9,"",ROWS(A$17:A198)-1) -> 181 | B198: 1258.212805 | C198: 549.2374231 | D198: 708.9753818 | E198: 113914.4868 | G198: =IF(ROWS(G$17:G198)-1>E$9,"",ROWS(G$17:G198)-1) -> 
A199: =IF(ROWS(A$17:A199)-1>B$9,"",ROWS(A$17:A199)-1) -> 182 | B199: 1258.212805 | C199: 545.8402494 | D199: 712.3725555 | E199: 113202.1143 | G199: =IF(ROWS(G$17:G199)-1>E$9,"",ROWS(G$17:G199)-1) -> 
A200: =IF(ROWS(A$17:A200)-1>B$9,"",ROWS(A$17:A200)-1) -> 183 | B200: 1258.212805 | C200: 542.4267976 | D200: 715.7860073 | E200: 112486.3283 | G200: =IF(ROWS(G$17:G200)-1>E$9,"",ROWS(G$17:G200)-1) -> 
A201: =IF(ROWS(A$17:A201)-1>B$9,"",ROWS(A$17:A201)-1) -> 184 | B201: 1258.212805 | C201: 538.9969896 | D201: 719.2158152 | E201: 111767.1125 | G201: =IF(ROWS(G$17:G201)-1>E$9,"",ROWS(G$17:G201)-1) -> 
A202: =IF(ROWS(A$17:A202)-1>B$9,"",ROWS(A$17:A202)-1) -> 185 | B202: 1258.212805 | C202: 535.5507472 | D202: 722.6620577 | E202: 111044.4504 | G202: =IF(ROWS(G$17:G202)-1>E$9,"",ROWS(G$17:G202)-1) -> 
A203: =IF(ROWS(A$17:A203)-1>B$9,"",ROWS(A$17:A203)-1) -> 186 | B203: 1258.212805 | C203: 532.0879915 | D203: 726.1248134 | E203: 110318.3256 | G203: =IF(ROWS(G$17:G203)-1>E$9,"",ROWS(G$17:G203)-1) -> 
A204: =IF(ROWS(A$17:A204)-1>B$9,"",ROWS(A$17:A204)-1) -> 187 | B204: 1258.212805 | C204: 528.6086434 | D204: 729.6041614 | E204: 109588.7214 | G204: =IF(ROWS(G$17:G204)-1>E$9,"",ROWS(G$17:G204)-1) -> 
... 173 more rows

Sheet (646)
A1: Size | B1: Cost | C1: Price | D1: Style | E1: Category | G1: Abbreviation | H1: Category
A2: 5 | B2: 16 | C2: 42 | D2: Style 1-mn | G2: k | H2: Kids
A3: 10 | B3: 22 | C3: 47 | D3: Style 3-wmn | G3: t | H3: Teenager
A4: 6 | B4: 18 | C4: 40 | D4: Style 3-t | G4: mn | H4: Men
A5: 5 | B5: 23 | C5: 38 | D5: Style 4-t | G5: wmn | H5: Women
A6: 7 | B6: 28 | C6: 44 | D6: Style 3-k
A7: 7 | B7: 29 | C7: 55 | D7: Style 4-mn | G7: For more about VLOOKUP, see:
A8: 5 | B8: 24 | C8: 44 | D8: Style 3-k | G8: http://www.youtube.com/view_play_list?p=C7521C502A5C0EB1
A9: 7 | B9: 23 | C9: 48 | D9: Style 2-k
A10: 7 | B10: 17 | C10: 45 | D10: Style 3-wmn
A11: 6 | B11: 18 | C11: 44 | D11: Style 3-t
A12: 10 | B12: 20 | C12: 50 | D12: Style 1-wmn
A13: 7 | B13: 30 | C13: 48 | D13: Style 4-t

Sheet (646an)
A1: Size | B1: Cost | C1: Price | D1: Style | E1: Category | G1: Abbreviation | H1: Category
A2: 5 | B2: 16 | C2: 42 | D2: Style 1-mn | E2: =VLOOKUP(RIGHT(D2,LEN(D2)-SEARCH("-",D2)),$G$2:$H$5,2,0) -> Men | G2: k | H2: Kids
A3: 10 | B3: 22 | C3: 47 | D3: Style 3-wmn | E3: =VLOOKUP(RIGHT(D3,LEN(D3)-SEARCH("-",D3)),$G$2:$H$5,2,0) -> Women | G3: t | H3: Teenager
A4: 6 | B4: 18 | C4: 40 | D4: Style 3-t | E4: Teenager | G4: mn | H4: Men
A5: 5 | B5: 23 | C5: 38 | D5: Style 4-t | E5: Teenager | G5: wmn | H5: Women
A6: 7 | B6: 28 | C6: 44 | D6: Style 3-k | E6: Kids
A7: 7 | B7: 29 | C7: 55 | D7: Style 4-mn | E7: Men | G7: For more about VLOOKUP, see:
A8: 5 | B8: 24 | C8: 44 | D8: Style 3-k | E8: Kids | G8: http://www.youtube.com/view_play_list?p=C7521C502A5C0EB1
A9: 7 | B9: 23 | C9: 48 | D9: Style 2-k | E9: Kids
A10: 7 | B10: 17 | C10: 45 | D10: Style 3-wmn | E10: Women
A11: 6 | B11: 18 | C11: 44 | D11: Style 3-t | E11: Teenager
A12: 10 | B12: 20 | C12: 50 | D12: Style 1-wmn | E12: Women
A13: 7 | B13: 30 | C13: 48 | D13: Style 4-t | E13: Teenager
